Workbook

Sheet Tableau de bord
A1: Roissy | B1: Michel | C1: Domo91 | U1: 3.0.0 | V1: ="Version: "&U1 -> Version: 3.0.0
C16: Total/Fournisseur | F16: Total jour | I16: CA | M16: Total Factures | N16: Total Ca | O16: Ratios | R16: Pertes. | S16: Repas. | T16: Rétrocession | U16: Offerts.
J17: CA_HT | L17: 2025-11 | N17: 3995.18 | O17: 0 | Q17: 2024-02-01 | R17: 491.42 | S17: 704.5 | T17: 1243.5 | U17: 0
F18: Total général | I18: 02-nov | J18: 2825.03 | L18: 2025-10 | M18: 24097.21 | N18: 67079.53 | O18: 0.3592334353 | Q18: Total général | R18: 491.42 | S18: 704.5 | T18: 1243.5 | U18: 0
I19: 01-nov | J19: 1170.15 | L19: 2025-09 | M19: 27601.92 | N19: 76672.43 | O19: 0.359997981
I20: Total général | J20: 3995.18 | L20: 2025-08 | M20: 18740.28 | N20: 47103.58 | O20: 0.3978525624
L21: 2025-07 | M21: 18280.84 | N21: 56347.45 | O21: 0.324430653
L22: 2025-06 | M22: 26473.57 | N22: 81459.3 | O22: 0.3249913761
L23: 2025-05 | M23: 19228.86 | N23: 57582.41 | O23: 0.3339363531
L24: 2025-04 | M24: 21218.85 | N24: 65917.44 | O24: 0.3219003954
L25: 2025-03 | M25: 18906.79 | N25: 58282.41 | O25: 0.3243995916
L26: 2025-02 | M26: 14352.05 | N26: 44233.7 | O26: 0.3244596315
L27: 2025-01 | M27: 24432.87 | N27: 65404.06 | O27: 0.3735680935
L28: 2024-12 | M28: 17511.1 | N28: 47806.33 | O28: 0.3662924972
L29: 2024-11 | M29: 19258.31 | N29: 59897.2 | O29: 0.3215227089
L30: 2024-10 | M30: 23273.92 | N30: 70855.97 | O30: 0.3284680176
L31: 2024-09 | M31: 28985.57 | N31: 90107.48 | O31: 0.3216777342
L32: 2024-08 | M32: 20188.88 | N32: 67715.54 | O32: 0.2981424943
L33: 2024-07 | M33: 24203.23 | N33: 78144.17 | O33: 0.3097253448
L34: 2024-06 | M34: 26933.95 | N34: 75916.41 | O34: 0.354784295
L35: 2024-05 | M35: 9795.69 | N35: 31450.96 | O35: 0.3114591733
L36: 2024-04 | M36: 19197.15 | N36: 63734.06 | O36: 0.3012070783
L37: 2024-03 | M37: 22479.36 | N37: 66597.31 | O37: 0.3375415614
L38: 2024-02 | M38: 12708.5 | N38: 40075.6 | O38: 0.3171131561
L39: 2024-01 | M39: 20378.44 | N39: 57753.17 | O39: 0.3528540511
A55: Ratio souhaité: | B55: 0.32

Sheet Scanner (hidden)
A1: Actions | B1: Valeur | C1: Code barre | D1: Réponse
A3: Charge batterie | B3: %%SpecCode15 | C3: =B3 -> %%SpecCode15 | D3: Battery: 100%
A5: Firmware | B5: %%SpecCode39 | C5: =B5 -> %%SpecCode39 | D5: SW:LW-3.18I Feb 17 2022 18:07:13

Sheet Inventaire
N1: Meudon
A2: Fournisseur | B2: Désignations | C2: Réf. | D2: Matériel | E2: Qté | F2: Prix | G2: Total
A3: A l Olivier | B3: Tapenade | C3: 539 | D3: Non | E3: 3 | F3: 3 | G3: 9
A4: A l Olivier | B4: Huile de Truffe | C4: 540 | D4: Non | E4: 1 | F4: 3 | G4: 3
A5: A l Olivier | B5: Huile d Olive basilic 250Gr | C5: 547 | D5: Non | E5: 2 | F5: 9 | G5: 18
A6: A l Olivier | B6: Vinaigre tomate | C6: 1335 | D6: Non | E6: 4 | F6: 7 | G6: 28
A7: A l Olivier | B7: Vinaigre yuzu | C7: 1336 | D7: Non | E7: 4 | F7: 7 | G7: 28
A8: Bharlev | B8: Pate de cacahuete 8pces | C8: 1045 | D8: Non | E8: 2 | F8: 3 | G8: 6
A9: Café Richard | B9: Cafe Grains Gourmet | C9: 455 | D9: Non | E9: 13 | F9: 13 | G9: 169
A10: Café Richard | B10: Lait en Poudre | C10: 459 | D10: Non | E10: 26 | F10: 8 | G10: 208
A11: Café Richard | B11: Chocolat En Poudre | C11: 456 | D11: Non | E11: 17 | F11: 10 | G11: 170
A12: Café Richard | B12: Cappucino En Poudre | C12: 458 | D12: Non | E12: 18 | F12: 11 | G12: 198
A13: Cercle Vert | B13: Lasagne | C13: 1167 | D13: Non | E13: 2 | F13: 22 | G13: 44
A14: Cercle Vert | B14: Sirop d erable | C14: 1151 | D14: Non | E14: 1 | F14: 67 | G14: 67
A15: Charraire | B15: CORIANDRE BOTTE | C15: 1587 | D15: Non | E15: 5 | F15: 0 | G15: 0
A16: Charraire | B16: ROMARIN BOTTE | C16: 1593 | D16: Non | E16: 1 | F16: 0 | G16: 0
A17: Charraire | B17: BANANE CAL.MOYEN KG | C17: 1524 | D17: Non | E17: 8 | F17: 2 | G17: 16
A18: Charraire | B18: CAROTTE PLATEAU CE2 KG | C18: 1573 | D18: Non | E18: 3 | F18: 1 | G18: 3
A19: Charraire | B19: CERFEUIL BOTTE | C19: 1564 | D19: Non | E19: 5 | F19: 0 | G19: 0
A20: Charraire | B20: CHAMP ERENGY-ERYNGII | C20: 1521 | D20: Non | E20: 1 | F20: 17 | G20: 17
A21: Charraire | B21: CHOU BOCK CHOY SHANGAI (PETIT VERT) KG | C21: 1575 | D21: Non | E21: 8 | F21: 4 | G21: 32
A22: Charraire | B22: CHOU CHINOIS CAT 1 | C22: 1545 | D22: Non | E22: 3 | F22: 2 | G22: 6
A23: Charraire | B23: CITRON CAL 5 KG CAT 2 | C23: 1570 | D23: Non | E23: 4 | F23: 3 | G23: 12
A24: Charraire | B24: CITRON VERT KG CAT1 | C24: 1550 | D24: Non | E24: 3 | F24: 3 | G24: 9
A25: Charraire | B25: CIVETTE-CIBOULETTE BOTTE | C25: 1551 | D25: Non | E25: 10 | F25: 0 | G25: 0
A26: Charraire | B26: CRESS GDE FEUILLE SHISO VERT X12 KOPPERT BQ | C26: 1528 | D26: Non | E26: 3 | F26: 6 | G26: 18
A27: Charraire | B27: CRESS MELI MIX / SAKURA MIX HVE3 BASTELICA COLIS | C27: 1557 | D27: Non | E27: 0 | F27: 29 | G27: 0 | J27: Somme de Total
A28: Charraire | B28: ECHALOTE CUISSE DE POULET CAT1 5KG | C28: 1567 | D28: Non | E28: 5 | F28: 2 | G28: 10 | I28: Fadi | J28: 240
A29: Charraire | B29: FRAMBOISE BQ | C29: 1540 | D29: Non | E29: 3 | F29: 3 | G29: 9 | I29: A l Olivier | J29: 86
A30: Charraire | B30: GINGEMBRE KG | C30: 1584 | D30: Non | E30: 1 | F30: 4 | G30: 4 | I30: Bharlev | J30: 6 | M30: Historique
A31: Charraire | B31: GRAINE COURGE BIO X250G (BDF500013) XC | C31: 1572 | D31: Non | E31: 1 | F31: 10 | G31: 10 | I31: Café Richard | J31: 745 | L31: 2025-10-01 | M31: 13325
A32: Charraire | B32: GROSEILLES ROUGE BQ | C32: 1538 | D32: Non | E32: 2 | F32: 3 | G32: 6 | I32: Chassineau | J32: 550 | L32: 2025-09-01 | M32: 8025
A33: Charraire | B33: MELANGE JEUNE P.BQ PURE-T KG | C33: 1536 | D33: Non | E33: 3 | F33: 12 | G33: 36 | I33: Compagnie des Desserts | J33: 180 | L33: 2025-08-01 | M33: 9804
A34: Charraire | B34: MURES BQ | C34: 1529 | D34: Non | E34: 2 | F34: 4 | G34: 8 | I34: Episaveurs | J34: 566 | L34: 2025-07-01 | M34: 18924
A35: Charraire | B35: OIGNON CEBETTE BTE | C35: 1549 | D35: Non | E35: 10 | F35: 1 | G35: 10 | I35: Gammes des Chefs | J35: 574 | L35: 2025-06-01 | M35: 12566
A36: Charraire | B36: ORANGE JUS CAL 5 KG CAT2 | C36: 1537 | D36: Non | E36: 5 | F36: 2 | G36: 10 | I36: Marly Distribution | J36: 240 | L36: 2025-05-01 | M36: 11640
A37: Charraire | B37: PATATE DOUCE XL KG | C37: 1525 | D37: Non | E37: 2 | F37: 2 | G37: 4 | I37: Passion Froid | J37: 285 | L37: 2025-04-01 | M37: 9890
A38: Charraire | B38: PIMENT ROUGE KG | C38: 1585 | D38: Non | E38: 1 | F38: 6 | G38: 6 | I38: Valrhona | J38: 66 | L38: 2025-03-01 | M38: 13149.7904
A39: Charraire | B39: POIRE CONFERENCE 70/75 PLT CAT1 | C39: 1566 | D39: Non | E39: 5 | F39: 3 | G39: 15 | I39: Good eating | J39: 9 | L39: 2025-02-01 | M39: 12744.0116
A40: Charraire | B40: POIVRON JAUNE KG CAT1 | C40: 1586 | D40: Non | E40: 2 | F40: 3 | G40: 6 | I40: Le Comptoir du Frais | J40: 240 | L40: 2025-01-01 | M40: 9890
A41: Charraire | B41: POIVRON ROUGE KG CAT1 | C41: 1569 | D41: Non | E41: 2 | F41: 3 | G41: 6 | I41: Cercle Vert | J41: 111
A42: Charraire | B42: POIVRON VERT KG CAT1 | C42: 1552 | D42: Non | E42: 2 | F42: 2 | G42: 4 | I42: Sysco | J42: 8471
A43: Charraire | B43: POMELOS ROUGE "STAR RUBY" KG | C43: 1547 | D43: Non | E43: 4 | F43: 2 | G43: 8 | I43: Yogurt kitchen | J43: 505
A44: Charraire | B44: POMME BI-COLOR FRANCE 65/70 (115G/135G) BIO KG | C44: 1541 | D44: Non | E44: 2 | F44: 3 | G44: 6 | I44: Charraire | J44: 451
A45: Charraire | B45: POMME GRANNY SMITH 70/75 (135G/180G) KG CAT1 | C45: 1555 | D45: Non | E45: 6 | F45: 2 | G45: 12 | I45: Total général | J45: 13325
A46: Charraire | B46: RADIS ROUGE EQUETE SCT | C46: 1582 | D46: Non | E46: 1 | F46: 4 | G46: 4
A47: Charraire | B47: ROMAINE COEUR(BQX2PCES) 8 BQ CAT1 | C47: 1522 | D47: Non | E47: 14 | F47: 3 | G47: 42
A48: Charraire | B48: SUCRINE 6 BQ | C48: 1544 | D48: Non | E48: 3 | F48: 4 | G48: 12
A49: Charraire | B49: TOMATE CERISE BQ CAT1 | C49: 1543 | D49: Non | E49: 6 | F49: 1 | G49: 6
A50: Charraire | B50: CLEMENTINE CAL 2 KG | C50: 1576 | D50: Non | E50: 2 | F50: 4 | G50: 8
A51: Charraire | B51: COURGE BUTTERNUT LOCALE KG | C51: 1558 | D51: Non | E51: 2 | F51: 2 | G51: 4
A52: Charraire | B52: MENTHE BOTTE | C52: 1592 | D52: Non | E52: 2 | F52: 0 | G52: 0
A53: Charraire | B53: MYRTILLES BQ | C53: 1574 | D53: Non | E53: 2 | F53: 3 | G53: 6
A54: Charraire | B54: OIGNON AUXONNE AU KG HVE3 | C54: 1583 | D54: Non | E54: 6 | F54: 0 | G54: 0
A55: Charraire | B55: PDT GT LAVÉE CT 10K LOCAL | C55: 1535 | D55: Non | E55: 80 | F55: 1 | G55: 80
A56: Charraire | B56: TOMATE VRAC 57/67MM (N°3) KG CAT1 | C56: 1589 | D56: Non | E56: 3 | F56: 2 | G56: 6
A57: Chassineau | B57: Ravioli vegetarien | C57: 473 | D57: Non | E57: 60 | F57: 0 | G57: 0
A58: Chassineau | B58: Pralin | C58: 480 | D58: Non | E58: 1 | F58: 17 | G58: 17
A59: Chassineau | B59: Chocolat Caraibes 66% | C59: 484 | D59: Non | E59: 10 | F59: 16 | G59: 160
A60: Chassineau | B60: Pate Noisette | C60: 488 | D60: Non | E60: 1 | F60: 34 | G60: 34
A61: Chassineau | B61: Espuma Chaud | C61: 492 | D61: Non | E61: 1 | F61: 16 | G61: 16
A62: Chassineau | B62: Espuma Froid | C62: 493 | D62: Non | E62: 1 | F62: 13 | G62: 13
A63: Chassineau | B63: Chocolat Lactee | C63: 494 | D63: Non | E63: 10 | F63: 15 | G63: 150
A64: Chassineau | B64: Chocolat Ivoir | C64: 483 | D64: Non | E64: 10 | F64: 16 | G64: 160
A65: Chassineau | B65: Chips Nature | C65: 478 | D65: Non | E65: 10 | F65: 0 | G65: 0
A66: Compagnie des Desserts | B66: Cafe | C66: 232 | D66: Non | E66: 2 | F66: 17 | G66: 34
A67: Compagnie des Desserts | B67: Litchee | C67: 233 | D67: Non | E67: 2 | F67: 17 | G67: 34
A68: Compagnie des Desserts | B68: Violette | C68: 236 | D68: Non | E68: 2 | F68: 22 | G68: 44
A69: Compagnie des Desserts | B69: Sorbet Citron | C69: 239 | D69: Non | E69: 2 | F69: 17 | G69: 34
A70: Compagnie des Desserts | B70: Glace Peche De Vigne | C70: 240 | D70: Non | E70: 2 | F70: 17 | G70: 34
A71: Episaveurs | B71: Mars | C71: 1359 | D71: Non | E71: 1 | F71: 29 | G71: 29
A72: Episaveurs | B72: Bouillon Legumes | C72: 299 | D72: Non | E72: 2 | F72: 15 | G72: 30
A73: Episaveurs | B73: Capres | C73: 269 | D73: Non | E73: 5 | F73: 2 | G73: 10
A74: Episaveurs | B74: Fleur De Sel | C74: 302 | D74: Non | E74: 1 | F74: 7 | G74: 7
A75: Episaveurs | B75: Herbes De Provence | C75: 312 | D75: Non | E75: 1 | F75: 6 | G75: 6
A76: Episaveurs | B76: Risotto | C76: 360 | D76: Non | E76: 12 | F76: 2 | G76: 24
A77: Episaveurs | B77: Sucre Roux | C77: 246 | D77: Non | E77: 4 | F77: 3 | G77: 12
A78: Episaveurs | B78: Sucre | C78: 247 | D78: Non | E78: 6 | F78: 0 | G78: 0
A79: Episaveurs | B79: Sirop Glucose | C79: 254 | D79: Non | E79: 2 | F79: 5 | G79: 10
A80: Episaveurs | B80: Noix Cerneaux | C80: 261 | D80: Non | E80: 2 | F80: 15 | G80: 30
A81: Episaveurs | B81: Pruneaux | C81: 262 | D81: Non | E81: 2 | F81: 8 | G81: 16
A82: Episaveurs | B82: Pate Marron | C82: 266 | D82: Non | E82: 1 | F82: 10 | G82: 10
A83: Episaveurs | B83: Quatre Epices | C83: 277 | D83: Non | E83: 1 | F83: 9 | G83: 9
A84: Episaveurs | B84: Poivre Mignonette | C84: 283 | D84: Non | E84: 2 | F84: 12 | G84: 24
A85: Episaveurs | B85: Gros Sel | C85: 304 | D85: Non | E85: 6 | F85: 0 | G85: 0
A86: Episaveurs | B86: Huile Sesame | C86: 325 | D86: Non | E86: 1 | F86: 6 | G86: 6
A87: Episaveurs | B87: Tabasco | C87: 338 | D87: Non | E87: 3 | F87: 3 | G87: 9
A88: Episaveurs | B88: Vin Blanc | C88: 345 | D88: Non | E88: 20 | F88: 1 | G88: 20
A89: Episaveurs | B89: Moutarde Ancienne | C89: 352 | D89: Non | E89: 2 | F89: 2 | G89: 4
A90: Episaveurs | B90: Vermicelle De Riz | C90: 358 | D90: Non | E90: 1 | F90: 7 | G90: 7
A91: Episaveurs | B91: Levure | C91: 371 | D91: Non | E91: 1 | F91: 11 | G91: 11
A92: Episaveurs | B92: Lentille Beluga | C92: 377 | D92: Non | E92: 1 | F92: 5 | G92: 5
A93: Episaveurs | B93: Jus Citron Vert | C93: 398 | D93: Non | E93: 1 | F93: 4 | G93: 4
A94: Episaveurs | B94: Pate a tartiner | C94: 582 | D94: Non | E94: 6 | F94: 6 | G94: 36
A95: Episaveurs | B95: Petite pommes | C95: 1051 | D95: Non | E95: 2 | F95: 4 | G95: 8
A96: Episaveurs | B96: Miso | C96: 1137 | D96: Non | E96: 1 | F96: 4 | G96: 4
A97: Episaveurs | B97: Yuzu | C97: 1136 | D97: Non | E97: 1 | F97: 9 | G97: 9
A98: Episaveurs | B98: Nappage neutre | C98: 1143 | D98: Non | E98: 2 | F98: 56 | G98: 112
A99: Episaveurs | B99: Nouille soba | C99: 1198 | D99: Non | E99: 2 | F99: 4 | G99: 8
A100: Episaveurs | B100: pain epices | C100: 1267 | D100: Non | E100: 3 | F100: 1 | G100: 3
A101: Episaveurs | B101: Spagheti ancre seiche | C101: 1260 | D101: Non | E101: 2 | F101: 4 | G101: 8
A102: Episaveurs | B102: trio camarguais | C102: 1259 | D102: Non | E102: 1 | F102: 5 | G102: 5
A103: Episaveurs | B103: Vinaigre de vin rouge | C103: 1329 | D103: Non | E103: 1 | F103: 1 | G103: 1
A104: Episaveurs | B104: Kinder bueno | C104: 1358 | D104: Non | E104: 2 | F104: 37 | G104: 74
A105: Episaveurs | B105: Poivre Noir Sarawak | C105: 308 | D105: Non | E105: 1 | F105: 15 | G105: 15
A106: Fadi | B106: Falafel | C106: 217 | D106: Non | E106: 8 | F106: 30 | G106: 240
A107: Gammes des Chefs | B107: Pain choco sans gluten | C107: 1105 | D107: Non | E107: 2 | F107: 51 | G107: 102
A108: Gammes des Chefs | B108: Cookies | C108: 468 | D108: Non | E108: 1 | F108: 38 | G108: 38
A109: Gammes des Chefs | B109: Pain Allemand Aux Graines | C109: 466 | D109: Non | E109: 0 | F109: 44 | G109: 0
A110: Gammes des Chefs | B110: Cake citron pavot | C110: 557 | D110: Non | E110: 1 | F110: 36 | G110: 36
A111: Gammes des Chefs | B111: Cake Marbre | C111: 470 | D111: Non | E111: 2 | F111: 34 | G111: 68
A112: Gammes des Chefs | B112: Brioche praline rose | C112: 1084 | D112: Non | E112: 2 | F112: 50 | G112: 100
A113: Gammes des Chefs | B113: Pain muesli | C113: 1086 | D113: Non | E113: 2 | F113: 63 | G113: 126
A114: Gammes des Chefs | B114: gros pain lalos | C114: 1278 | D114: Non | E114: 2 | F114: 52 | G114: 104
A115: Good eating | B115: Chips nature | C115: 618 | D115: Non | E115: 3 | F115: 0 | G115: 0
A116: Good eating | B116: Biscuit comte | C116: 1099 | D116: Non | E116: 8 | F116: 1 | G116: 8
A117: Good eating | B117: Biscuit tomate | C117: 1100 | D117: Non | E117: 1 | F117: 1 | G117: 1
A118: Le Comptoir du Frais | B118: Jus d orange Andros | C118: 1036 | D118: Non | E118: 60 | F118: 4 | G118: 240
A119: Marly Distribution | B119: Moutarde*96 | C119: 517 | D119: Non | E119: 2 | F119: 0 | G119: 0
A120: Marly Distribution | B120: Mayonnaise*80 | C120: 519 | D120: Non | E120: 3 | F120: 0 | G120: 0
A121: Marly Distribution | B121: Corn Flakes | C121: 525 | D121: Non | E121: 40 | F121: 6 | G121: 240
A122: Passion Froid | B122: Anchois | C122: 149 | D122: Non | E122: 1 | F122: 8 | G122: 8
A123: Passion Froid | B123: Chevre Palet | C123: 140 | D123: Non | E123: 1 | F123: 12 | G123: 12
A124: Passion Froid | B124: Feves | C124: 189 | D124: Non | E124: 2 | F124: 6 | G124: 12
A125: Passion Froid | B125: Chantilly Bombe | C125: 213 | D125: Non | E125: 5 | F125: 5 | G125: 25
A126: Passion Froid | B126: Jus de pomme andros | C126: 1054 | D126: Non | E126: 6 | F126: 38 | G126: 228
A127: Passion Froid | B127: Feve Soja | C127: 200 | D127: Non | E127: 0 | F127: 5 | G127: 0
A128: Sysco | B128: APP.CREM.BRULE VANIL.BOURB. E&V PC1L X6 | C128: 1451 | D128: Non | E128: 8 | F128: 8 | G128: 64
A129: Sysco | B129: BABA RHUM BOUCHON 130G CBR X15 | C129: 1431 | D129: Non | E129: 1 | F129: 29 | G129: 29
A130: Sysco | B130: BAGUETTE PREC.S/SOLE 280G BRIDOR X25 | C130: 1372 | D130: Non | E130: 2 | F130: 16 | G130: 32
A131: Sysco | B131: BEURRE 1/2 SEL MICROP.10G BT100PC X6 | C131: 1442 | D131: Non | E131: 4 | F131: 9 | G131: 36
A132: Sysco | B132: BEURRE DOUX 250G FR X40 | C132: 1439 | D132: Non | E132: 15 | F132: 10 | G132: 150
A133: Sysco | B133: BEURRE DOUX MICROP.10G BT100PC X6 | C133: 1441 | D133: Non | E133: 6 | F133: 9 | G133: 54
A134: Sysco | B134: BOISSON SOJA NATURE 1L PK8BO | C134: 1445 | D134: Non | E134: 6 | F134: 2 | G134: 12
A135: Sysco | B135: BOUILLON LEGUME SYC BT1KG X6 | C135: 1487 | D135: Non | E135: 2 | F135: 19 | G135: 38
A136: Sysco | B136: BURRATINA 23% MG 50G BQ500G X4 | C136: 1469 | D136: Non | E136: 1 | F136: 9 | G136: 9
A137: Sysco | B137: CANTAL JEUNE 30%MG AOP 30G VDC BQ24PC X6 | C137: 1471 | D137: Non | E137: 5 | F137: 0 | G137: 0
A138: Sysco | B138: CAPRE CAPUCINE BT 4/4 PNE 480G X6 | C138: 1495 | D138: Non | E138: 5 | F138: 6 | G138: 30
A139: Sysco | B139: CEREALES COCO POPS KELLOG'S BT500G X8 | C139: 1498 | D139: Non | E139: 11 | F139: 6 | G139: 66
A140: Sysco | B140: CHIFFONNADE JAMB.ROTI HERB.20G BQ10TR X6 | C140: 1390 | D140: Non | E140: 10 | F140: 4 | G140: 40
A141: Sysco | B141: COMPOTE POM.ALL.SUC.BIO PLAST.100G X120 | C141: 1504 | D141: Non | E141: 167 | F141: 0 | G141: 0
A142: Sysco | B142: COPEAU GRANA PADANO 28%MG AOP ST500G X8 | C142: 1461 | D142: Non | E142: 4 | F142: 12 | G142: 48
A143: Sysco | B143: CREME 35%MG MIN.UHT 1L X12 | C143: 1447 | D143: Non | E143: 6 | F143: 4 | G143: 24
A144: Sysco | B144: CREME LEGERE 18%MG UHT SYC 1L X6 | C144: 1448 | D144: Non | E144: 25 | F144: 3 | G144: 75
A145: Sysco | B145: CRISPY TENDERS CUIT HALAL 30/70G ST1KGX5 | C145: 1414 | D145: Non | E145: 1 | F145: 12 | G145: 12
A146: Sysco | B146: FLT ROUGET BARB.QSA 40/80G ST1KG X3 | C146: 1396 | D146: Non | E146: 3 | F146: 15 | G146: 45
A147: Sysco | B147: FLT SAUM ATL.A/P S/AR.TRIM B 2/3.1KG X4 | C147: 1391 | D147: Non | E147: 6 | F147: 15 | G147: 90
A148: Sysco | B148: FOND BLC VOLAILLE SYC BT750G X6 | C148: 1488 | D148: Non | E148: 1 | F148: 11 | G148: 11
A149: Sysco | B149: FONDANT CHOC. SYC 90GX20 stockage -18°C | C149: 1432 | D149: Non | E149: 2 | F149: 30 | G149: 60
A150: Sysco | B150: FROM.BLANC LISSE 0%MG SE5KG | C150: 1476 | D150: Non | E150: 5 | F150: 2 | G150: 10
A151: Sysco | B151: FROMAGE BLANC 3.8%MG 100G PK4PC X12 | C151: 1474 | D151: Non | E151: 45 | F151: 0 | G151: 0
A152: Sysco | B152: GRAINES COURGE BIO ST500G X4 | C152: 1483 | D152: Non | E152: 1 | F152: 11 | G152: 11
A153: Sysco | B153: GRANA PADANO RAPE AOP ST1KG X8 | C153: 1458 | D153: Non | E153: 3 | F153: 20 | G153: 60
A154: Sysco | B154: GYOZA POULET & LEGUME IQF ST600G X10 | C154: 1382 | D154: Non | E154: 10 | F154: 14 | G154: 140
A155: Sysco | B155: HUILE SESAME BI50CL X6 | C155: 1480 | D155: Non | E155: 1 | F155: 9 | G155: 9
A156: Sysco | B156: HUILE TOURNESOL NEGOCE BO1L X15 | C156: 1482 | D156: Non | E156: 18 | F156: 4 | G156: 72
A157: Sysco | B157: KETCHUP HEINZ ST10ML X1200 | C157: 1490 | D157: Non | E157: 1 | F157: 80 | G157: 80
A158: Sysco | B158: LAIT AMANDE SANS SUCRE NATRUE BO1L X6 | C158: 1446 | D158: Non | E158: 4 | F158: 3 | G158: 12
A159: Sysco | B159: LAIT COCO 1L | C159: 1485 | D159: Non | E159: 6 | F159: 4 | G159: 24
A160: Sysco | B160: MADELEINE PUR BEURRE 45G X70 | C160: 1433 | D160: Non | E160: 70 | F160: 0 | G160: 0
A161: Sysco | B161: MAXI COOKIE DOUBLE CHOC. 76G SYC X34 | C161: 1434 | D161: Non | E161: 1 | F161: 36 | G161: 36
A162: Sysco | B162: MAYONNAISE SE BKE 5L | C162: 1491 | D162: Non | E162: 2 | F162: 17 | G162: 34
A163: Sysco | B163: MELANGE RAPE FROMAGES ERMITAGE ST1KG | C163: 1460 | D163: Non | E163: 2 | F163: 8 | G163: 16
A164: Sysco | B164: MIN.CROISS.BEUR.AOP PAC 30G BRIDOR X195 | C164: 1378 | D164: Non | E164: 447 | F164: 0 | G164: 0
A165: Sysco | B165: MINI CANELE 16G X150 | C165: 1436 | D165: Non | E165: 120 | F165: 0 | G165: 0
A166: Sysco | B166: MINI CREPE MOELLEUSE 15G CBR X120 | C166: 1437 | D166: Non | E166: 8 | F166: 12 | G166: 96
A167: Sysco | B167: MINI FINANCIER 15G X80 | C167: 1435 | D167: Non | E167: 1 | F167: 30 | G167: 30
A168: Sysco | B168: MINI FOND.CHOC SYC 30GX45 stockage -18°C | C168: 1438 | D168: Non | E168: 30 | F168: 0 | G168: 0
A169: Sysco | B169: MINI PAIN CHOC.AOP PAC 35G BRIDOR X210 | C169: 1379 | D169: Non | E169: 483 | F169: 0 | G169: 0
A170: Sysco | B170: MINI PAIN RAISIN 30G SYC X160 | C170: 1380 | D170: Non | E170: 215 | F170: 22 | G170: 4730
A171: Sysco | B171: MINI PERENES CAMPAGNE 70G X100 | C171: 1373 | D171: Non | E171: 1 | F171: 24 | G171: 24
A172: Sysco | B172: OEUF BROUILLE PPA 1KG X4 | C172: 1456 | D172: Non | E172: 23 | F172: 9 | G172: 207
A173: Sysco | B173: OEUF POCHE SAUMURE PPA PT INF.53G SE75PC | C173: 1455 | D173: Non | E173: 75 | F173: 0 | G173: 0
A174: Sysco | B174: OEUF. ALV. GROS 63/73G X90 | C174: 1453 | D174: Non | E174: 60 | F174: 0 | G174: 0
A175: Sysco | B175: PAIN MIE TR.EPAISSE(CROQ.MR) PC 730G X7 | C175: 1377 | D175: Non | E175: 8 | F175: 2 | G175: 16
A176: Sysco | B176: PAVE SAUMON ATL.A/P QSA 150G X20ENV.3KG | C176: 1392 | D176: Non | E176: 2 | F176: 17 | G176: 34
A177: Sysco | B177: PAVE SAUMON ATL.QSA 160/180G 5KG | C177: 1393 | D177: Non | E177: 1 | F177: 20 | G177: 20
A178: Sysco | B178: PETIT PAIN PAVE RUSTIQUE 43G X190 | C178: 1375 | D178: Non | E178: 2 | F178: 21 | G178: 42
A179: Sysco | B179: PREP. PANNA COTTA GALBANI UHT BR1L X6 | C179: 1452 | D179: Non | E179: 7 | F179: 5 | G179: 35
A180: Sysco | B180: RAPE PDT 100G DAV ST15PC X2 | C180: 1419 | D180: Non | E180: 8 | F180: 5 | G180: 40
A181: Sysco | B181: RIZ LONG GRAIN ETUVE QS ST 5 KG | C181: 1502 | D181: Non | E181: 4 | F181: 2 | G181: 8
A182: Sysco | B182: SAUCE SOJA KIKKOMAN SUCREE 975ML X6 | C182: 1494 | D182: Non | E182: 5 | F182: 9 | G182: 45
A183: Sysco | B183: SAUCE SOJA SALE KIKKOMAN BO 1L | C183: 1493 | D183: Non | E183: 4 | F183: 8 | G183: 32
A184: Sysco | B184: TAPENA ARTICHAUT BASILIC BQ500G X6 | C184: 1383 | D184: Non | E184: 6 | F184: 7 | G184: 42
A185: Sysco | B185: TATAKI PB VBF A TRANCHER 420G X8 | C185: 1403 | D185: Non | E185: 2 | F185: 24 | G185: 48
A186: Sysco | B186: TR.CANTAL 30%MG AOP 25G BQ28TR X6 | C186: 1462 | D186: Non | E186: 5 | F186: 12 | G186: 60
A187: Sysco | B187: CORN FLAKES BT750G X10 | C187: 1499 | D187: Non | E187: 50 | F187: 6 | G187: 300
A188: Sysco | B188: CORNICHON 60/79 BT4/4 PNE 425G X6 | C188: 1496 | D188: Non | E188: 5 | F188: 6 | G188: 30
A189: Sysco | B189: ENTRECOTE S/PARE S/V VBF ST3/5.5 KG | C189: 1401 | D189: Non | E189: 18 | F189: 24 | G189: 432
A190: Sysco | B190: FILET MAIGRE QSA 0.6/1KG CT7KG | C190: 1395 | D190: Non | E190: 1 | F190: 25 | G190: 25
A191: Sysco | B191: FOND TARTELETTE CUIT ROND 8CM 29G 45PC | C191: 1381 | D191: Non | E191: 45 | F191: 1 | G191: 45
A192: Sysco | B192: GOMME XANTHANE 1KG X6 | C192: 1484 | D192: Non | E192: 1 | F192: 40 | G192: 40
A193: Sysco | B193: GRAINE MOUTARDE JAUNE ST100G X120 | C193: 1486 | D193: Non | E193: 2 | F193: 1 | G193: 2
A194: Sysco | B194: HUILE VEGETALE CUISINOR 20 L CT/1 BIDON | C194: 1481 | D194: Non | E194: 3 | F194: 2 | G194: 6
A195: Sysco | B195: LAIT 1/2 ECREME UHT 1L X6 | C195: 1444 | D195: Non | E195: 25 | F195: 0 | G195: 0
A196: Sysco | B196: MEZZE PENE ASSAIS. SYC ST2KG X4 | C196: 1425 | D196: Non | E196: 8 | F196: 4 | G196: 32
A197: Sysco | B197: MUESLI GRANOLA FRUIT ROUGE PC500G X 7 | C197: 1500 | D197: Non | E197: 1 | F197: 6 | G197: 6
A198: Sysco | B198: OEUF ENT. LIQ. SOL+ BO 2KG X4 | C198: 1454 | D198: Non | E198: 19 | F198: 8 | G198: 152
A199: Sysco | B199: PAIN BIG BUN'S GOURMET 85G X65 | C199: 1376 | D199: Non | E199: 60 | F199: 0 | G199: 0
A200: Sysco | B200: PAIN POCHON PREC.BRIDOR 450G X16 | C200: 1371 | D200: Non | E200: 24 | F200: 2 | G200: 48
... 15 more rows

Sheet Catalogue
A1: Actif | B1: (Plusieurs éléments) | C1: Réf. | D1: Prix | E1: Qté | G1: =SiteActuel -> Roissy | I1: =COUNTA(E2:E1048576) -> 0 | R1: =COUNTA(C3:C1223) -> 544 | S1: TRUE
A3: Bharlev | B3: Jus de pomme | C3: 1293 | D3: 3.5
A4: Bharlev | B4: Boursin | C4: 1039 | D4: 18.74 | G4: Si vous commencez l'inventaire d'un mois videz les quantités du mois dernier.
A5: Bharlev | B5: Confiture bonne maman abricot 4 pces | C5: 1042 | D5: 4.57 | G5: N'effacez jamais les quantités avant d'avoir validé l'inventaire de votre mois,
A6: Bharlev | B6: Confiture bonne maman figue 1 pces | C6: 1040 | D6: 2.89 | G6: vous pourrez ainsi réenregistrer le mois courant les anciennes données du mois seront effacées.
A7: Bharlev | B7: Confiture bonne maman fraise 5 pces | C7: 1044 | D7: 4.61
A8: Bharlev | B8: Confiture bonne maman lait 3pces | C8: 1043 | D8: 4.65
A9: Bharlev | B9: Confiture bonne maman orange 4 pces | C9: 1041 | D9: 3.64
A10: Bharlev | B10: Green detox 1 litre | C10: 1038 | D10: 4.99
A11: Bharlev | B11: Jus ananas | C11: 1069 | D11: 2.6
A12: Bharlev | B12: Jus d orange frais 10 litre | C12: 1037 | D12: 2.63
A13: Bharlev | B13: Jus de Carotte | C13: 542 | D13: 3.9
A14: Bharlev | B14: Pate de cacahuete 8pces | C14: 1045 | D14: 3.85
A15: Bharlev | B15: salade de fruit saisons | C15: 1323 | D15: 3.71
A16: Bharlev | B16: Salade de Fruits Exotiques | C16: 541 | D16: 4.3
A17: Bharlev | B17: Smoothie Ananas Mangue | C17: 543 | D17: 4.76
A18: Bharlev | B18: Smoothie fraise | C18: 1322 | D18: 4.5
A19: Bharlev | B19: smoothie mangue | C19: 1321 | D19: 4.77
A20: Café Richard | B20: Cafe Grains Gourmet | C20: 455 | D20: 13.42
A21: Café Richard | B21: Cappucino En Poudre | C21: 458 | D21: 11.6
A22: Café Richard | B22: Decafeine en poudre | C22: 457 | D22: 10.8
A23: Café Richard | B23: Lait en Poudre | C23: 459 | D23: 8.35
A24: Café Richard | B24: Bib Multi Novadelta | C24: 454 | D24: 105
A25: Café Richard | B25: Bib Orange Novadelta | C25: 452 | D25: 100
A26: Café Richard | B26: Bib Orange Oc22 | C26: 449 | D26: 2.26
A27: Café Richard | B27: Bib Pamp Oc 22 | C27: 450 | D27: 1.83
A28: Café Richard | B28: Bib Pomme Novadelta | C28: 453 | D28: 90
A29: Café Richard | B29: Bib Pommes Oc22 | C29: 451 | D29: 2.3
A30: Café Richard | B30: Chocolat En Poudre | C30: 456 | D30: 10.8
A31: Charraire | B31: CORIANDRE BOTTE | C31: 1587 | D31: 0.6
A32: Charraire | B32: ROMARIN BOTTE | C32: 1593 | D32: 0.64
A33: Charraire | B33: CERFEUIL BOTTE | C33: 1564 | D33: 0.7
A34: Charraire | B34: FRAMBOISE BQ | C34: 1540 | D34: 3.1
A35: Charraire | B35: MELON CHARENTAIS KG | C35: 1539 | D35: 2.29
A36: Charraire | B36: MENTHE BOTTE | C36: 1592 | D36: 0.53
A37: Charraire | B37: OIGNON CEBETTE BTE | C37: 1549 | D37: 1.55
A38: Charraire | B38: PERSIL PLAT BOTTE | C38: 1590 | D38: 0.5
A39: Charraire | B39: ANANAS SWEET BATEAU CAT1 KG | C39: 1532 | D39: 2.27
A40: Charraire | B40: BANANE CAL.MOYEN KG | C40: 1524 | D40: 2.41
A41: Charraire | B41: BLANC POIREAUX KG | C41: 1565 | D41: 5.4
A42: Charraire | B42: CAROTTE PLATEAU CE2 KG | C42: 1573 | D42: 1.9
A43: Charraire | B43: CHAMP ERENGY-ERYNGII | C43: 1521 | D43: 17.4
A44: Charraire | B44: CHOU BOCK CHOY SHANGAI (PETIT VERT) KG | C44: 1575 | D44: 4.54
A45: Charraire | B45: CHOU CHINOIS CAT 1 | C45: 1545 | D45: 2.99
A46: Charraire | B46: CHOU PACK CHOY (GROS BLANC) KG | C46: 1523 | D46: 8.28
A47: Charraire | B47: CITRON CAL 5 KG CAT 2 | C47: 1570 | D47: 3.48
A48: Charraire | B48: CITRON VERT KG CAT1 | C48: 1550 | D48: 3.98
A49: Charraire | B49: CIVETTE-CIBOULETTE BOTTE | C49: 1551 | D49: 0.6
A50: Charraire | B50: CLEMENTINE CAL 2 KG | C50: 1576 | D50: 4.09
A51: Charraire | B51: COURGE BUTTERNUT LOCALE KG | C51: 1558 | D51: 2.86
A52: Charraire | B52: COURGETTE (CAL 14/21CM) KG | C52: 1588 | D52: 2.41
A53: Charraire | B53: CRESS GDE FEUILLE SHISO VERT X12 KOPPERT BQ | C53: 1528 | D53: 6.05
A54: Charraire | B54: CRESS MELI MIX / SAKURA MIX HVE3 BASTELICA COLIS | C54: 1557 | D54: 29.47
A55: Charraire | B55: CRESS SHISO MIX 16 BQ KOPPERT | C55: 1546 | D55: 20.95
A56: Charraire | B56: ECHALOTE CUISSE DE POULET CAT1 5KG | C56: 1567 | D56: 2.87
A57: Charraire | B57: FIGUE NOIRE CAT1 KG | C57: 1556 | D57: 6.82
A58: Charraire | B58: FLEURS SOUCIS / ZINIA BQ | C58: 1561 | D58: 6.98
A59: Charraire | B59: GINGEMBRE KG | C59: 1584 | D59: 4.28
A60: Charraire | B60: GRAINE COURGE BIO X250G (BDF500013) XC | C60: 1572 | D60: 10.03
A61: Charraire | B61: GROSEILLES ROUGE BQ | C61: 1538 | D61: 3.39
A62: Charraire | B62: HARICOT VERT EQUEUTE BARQ. KG | C62: 1568 | D62: 11.61
A63: Charraire | B63: KIWI CAL27 PCE CAT1 | C63: 1559 | D63: 1.05
A64: Charraire | B64: KIWI VERT CALIBRE 39 PCE CAT1 | C64: 1527 | D64: 0.54
A65: Charraire | B65: LAIT UHT 1/2 ECREME 1L (GC) | C65: 1526 | D65: 2.03
A66: Charraire | B66: MELANGE JEUNE P.BQ PURE-T KG | C66: 1536 | D66: 12.98
A67: Charraire | B67: MELANGE JEUNES POUSSES LOCALE HVE3 KG | C67: 1548 | D67: 9.14
A68: Charraire | B68: MURES BQ | C68: 1529 | D68: 4.22
A69: Charraire | B69: MYRTILLES BQ | C69: 1574 | D69: 3.16
A70: Charraire | B70: NECTARINE BLANCHE B IMPORT KG CAT1 | C70: 1578 | D70: 4.94
A71: Charraire | B71: OIGNON AUXONNE 10 FLT KG HVE3 | C71: 1591 | D71: 1.09
A72: Charraire | B72: OIGNON AUXONNE AU KG HVE3 | C72: 1583 | D72: 0.96
A73: Charraire | B73: OIGNON FLT ROUGE 10KG | C73: 1579 | D73: 1.84
A74: Charraire | B74: ORANGE JUS CAL 5 KG CAT2 | C74: 1537 | D74: 2.18
A75: Charraire | B75: PASTEQUE CAT1 5/7 KG | C75: 1533 | D75: 1.61
A76: Charraire | B76: PATATE DOUCE XL KG | C76: 1525 | D76: 2.5
A77: Charraire | B77: PDT FRITABLE LAVEE (TRESOR) SAC 25 KG | C77: 1530 | D77: 1.25
A78: Charraire | B78: PDT GRENAILLE TYPE CHARLOTTE CT 12.5KG LOCAL | C78: 1531 | D78: 2.5
A79: Charraire | B79: PDT GT LAVÉE CT 10K LOCAL | C79: 1535 | D79: 1.8
A80: Charraire | B80: PDT GT TYPE BINTJ BROSSÉE FLT 25K LOCAL | C80: 1520 | D80: 1.04
A81: Charraire | B81: PIMENT ROUGE KG | C81: 1585 | D81: 6.73
A82: Charraire | B82: POIRE CONFERENCE 70/75 PLT CAT1 | C82: 1566 | D82: 3.45
A83: Charraire | B83: POIS GOURMAND EQ. BQTTE | C83: 1581 | D83: 14.37
A84: Charraire | B84: POIVRON JAUNE KG CAT1 | C84: 1586 | D84: 3.91
A85: Charraire | B85: POIVRON ROUGE KG CAT1 | C85: 1569 | D85: 3.1
A86: Charraire | B86: POIVRON VERT KG CAT1 | C86: 1552 | D86: 2.67
A87: Charraire | B87: POMELOS ROUGE "STAR RUBY" KG | C87: 1547 | D87: 2.76
A88: Charraire | B88: POMME BI-COLOR FRANCE 65/70 (115G/135G) BIO KG | C88: 1541 | D88: 3.2
A89: Charraire | B89: POMME GRANNY SMITH 70/75 (135G/180G) KG CAT1 | C89: 1555 | D89: 2.25
A90: Charraire | B90: POURPIER KG | C90: 1534 | D90: 14.11
A91: Charraire | B91: POUSSE MOUTARDE FRISEE ROUGE LOCAL KG | C91: 1577 | D91: 15.5
A92: Charraire | B92: PRUNE JAUNE FRANCE KG | C92: 1562 | D92: 6.47
A93: Charraire | B93: PRUNE REINE CLAUDE HVE KG | C93: 1563 | D93: 11.44
A94: Charraire | B94: PRUNE ROUGE FRANCE HVE KG | C94: 1580 | D94: 6.32
A95: Charraire | B95: PUREE P.D.T NATURE AVIKO SURG 4 X 2.5 KG | C95: 1553 | D95: 3.19
A96: Charraire | B96: RADIS ROUGE EQUETE SCT | C96: 1582 | D96: 4.46
A97: Charraire | B97: ROMAINE COEUR(BQX2PCES) 8 BQ CAT1 | C97: 1522 | D97: 3.3
A98: Charraire | B98: SALADE MELANGE 4 GAMME JEUNE POUSSE 8 X 250 GR | C98: 1560 | D98: 3.5
A99: Charraire | B99: SALADE ROMAINE PCE | C99: 1554 | D99: 1.32
A100: Charraire | B100: SUCRINE 6 BQ | C100: 1544 | D100: 4.25
A101: Charraire | B101: TOMATE CERISE BQ CAT1 | C101: 1543 | D101: 1.38
A102: Charraire | B102: TOMATE PLATEAU 67/82MM (N°2) KG CAT1 | C102: 1542 | D102: 3.95
A103: Charraire | B103: TOMATE VRAC 57/67MM (N°3) KG CAT1 | C103: 1589 | D103: 2.53
A104: Charraire | B104: TOMATE VRAC 67/82MM (N°2) KG CAT1 | C104: 1571 | D104: 2.49
A105: Diversey | B105: Brille Inox D7.2 | C105: 1348 | D105: 40.78
A106: Diversey | B106: D.4.4 | C106: 1339 | D106: 27.42
A107: Diversey | B107: D1 plus | C107: 1342 | D107: 50.96
A108: Diversey | B108: D1 plus | C108: 1357 | D108: 50.96
A109: Diversey | B109: D10.1 | C109: 1341 | D109: 22.21
A110: Diversey | B110: D10.4 | C110: 1340 | D110: 20.2
A111: Diversey | B111: Divosan | C111: 1356 | D111: 24.8
A112: Diversey | B112: Gel Plancha | C112: 1345 | D112: 4.3
A113: Diversey | B113: Room Car R3 | C113: 1347 | D113: 48.07
A114: Diversey | B114: Suma Frit | C114: 1344 | D114: 330.16
A115: Diversey | B115: Suma Pur Eco A7 | C115: 1343 | D115: 49.46
A116: Essai | B116: orange | C116: 1595 | D116: 12.25
A117: Gammes des Chefs | B117: Pain choco sans gluten | C117: 1105 | D117: 51.07
A118: Gammes des Chefs | B118: Cake Marbre | C118: 470 | D118: 34.87
A119: Gammes des Chefs | B119: Cookies | C119: 468 | D119: 38.11
A120: Gammes des Chefs | B120: Boule caractere | C120: 1181 | D120: 26.47
A121: Gammes des Chefs | B121: Brioche nature | C121: 1332 | D121: 3.98
A122: Gammes des Chefs | B122: Brioche praline rose | C122: 1084 | D122: 50.56
A123: Gammes des Chefs | B123: Brochette de poulet | C123: 1192 | D123: 90.25
A124: Gammes des Chefs | B124: Brookies | C124: 1282 | D124: 38.48
A125: Gammes des Chefs | B125: Cadre Framboisier | C125: 460 | D125: 45.8
A126: Gammes des Chefs | B126: Cadre Opera | C126: 461 | D126: 44.7
A127: Gammes des Chefs | B127: Cake chevre | C127: 1244 | D127: 12.97
A128: Gammes des Chefs | B128: Cake citron pavot | C128: 557 | D128: 36.58
A129: Gammes des Chefs | B129: Canellee | C129: 463 | D129: 37.05
A130: Gammes des Chefs | B130: Chausson aux pommes savoureux | C130: 1110 | D130: 42.16
A131: Gammes des Chefs | B131: Croissant savoureux | C131: 1108 | D131: 36.82
A132: Gammes des Chefs | B132: Financier | C132: 1191 | D132: 36.58
A133: Gammes des Chefs | B133: Financier fruit rouge | C133: 1082 | D133: 27.14
A134: Gammes des Chefs | B134: Findor graine | C134: 558 | D134: 16.64
A135: Gammes des Chefs | B135: Findor nature | C135: 559 | D135: 22.81
A136: Gammes des Chefs | B136: Ganache Feve Tonka | C136: 560 | D136: 73.87
A137: Gammes des Chefs | B137: Gauffre Liege | C137: 464 | D137: 29.5
A138: Gammes des Chefs | B138: Genoise chocolat | C138: 1180 | D138: 54.15
A139: Gammes des Chefs | B139: gros pain lalos | C139: 1278 | D139: 52.65
A140: Gammes des Chefs | B140: Guimauve | C140: 462 | D140: 45.14
A141: Gammes des Chefs | B141: Guimauve Pistache | C141: 563 | D141: 45.12
A142: Gammes des Chefs | B142: Madeleine sans gluten | C142: 1106 | D142: 32.3
A143: Gammes des Chefs | B143: mini cheese cake | C143: 1193 | D143: 26.13
A144: Gammes des Chefs | B144: Mini croissant | C144: 1309 | D144: 55.48
A145: Gammes des Chefs | B145: Mini eclair | C145: 1190 | D145: 12.45
A146: Gammes des Chefs | B146: Mini extravagant framb | C146: 1242 | D146: 22.08
A147: Gammes des Chefs | B147: Mini gourmand | C147: 1243 | D147: 18.28
A148: Gammes des Chefs | B148: Mini pain chocolat | C148: 1307 | D148: 55.66
A149: Gammes des Chefs | B149: Mini pain raisin | C149: 1308 | D149: 62.26
A150: Gammes des Chefs | B150: Mini paris brest | C150: 1194 | D150: 26.13
A151: Gammes des Chefs | B151: Mini pita | C151: 1280 | D151: 22.57
A152: Gammes des Chefs | B152: Moelleux chocolat | C152: 1182 | D152: 39.17
A153: Gammes des Chefs | B153: Moricette | C153: 1245 | D153: 68.9
A154: Gammes des Chefs | B154: Muffing Chocolat | C154: 469 | D154: 52.08
A155: Gammes des Chefs | B155: Pain Allemand Aux Graines | C155: 466 | D155: 44.15
A156: Gammes des Chefs | B156: Pain au chocolat savoureux | C156: 1107 | D156: 37.79
A157: Gammes des Chefs | B157: Pain aux fruits | C157: 1085 | D157: 40.14
A158: Gammes des Chefs | B158: Pain aux raisin savoureux | C158: 1109 | D158: 37.28
A159: Gammes des Chefs | B159: Pain graine sans gluten | C159: 591 | D159: 33.97
A160: Gammes des Chefs | B160: Pain muesli | C160: 1086 | D160: 63.97
A161: Gammes des Chefs | B161: Panecake | C161: 467 | D161: 24.32
A162: Gammes des Chefs | B162: Pave cereales | C162: 1189 | D162: 74.1
A163: Gammes des Chefs | B163: Petit four st germain | C163: 1281 | D163: 34.2
A164: Gammes des Chefs | B164: Petit Pain Cereales Lalos | C164: 465 | D164: 25.78
A165: Gammes des Chefs | B165: Praline Noir Peti:llant | C165: 561 | D165: 74.08
A166: Gammes des Chefs | B166: Praline Rocher | C166: 562 | D166: 73.87
A167: Gammes des Chefs | B167: Puree fraise | C167: 1331 | D167: 7.6
A168: Gammes des Chefs | B168: Tarte fine aux pommes | C168: 1236 | D168: 2.21
A169: Gammes des Chefs | B169: Tarte tropezienne | C169: 1087 | D169: 16.62
A170: Good eating | B170: Barre cereales | C170: 1095 | D170: 1.7
A171: Good eating | B171: Barre chocolat | C171: 1197 | D171: 1.55
A172: Good eating | B172: Biscuit comte | C172: 1099 | D172: 1.04
A173: Good eating | B173: Biscuit pepite choco | C173: 1098 | D173: 1.04
A174: Good eating | B174: Biscuit pur beurre | C174: 1102 | D174: 1.34
A175: Good eating | B175: Biscuit tomate | C175: 1100 | D175: 1.26
A176: Good eating | B176: Burger Boeuf | C176: 614 | D176: 3.7
A177: Good eating | B177: Cheese Cake | C177: 615 | D177: 1.64
A178: Good eating | B178: Chips fruits | C178: 1093 | D178: 1.9
A179: Good eating | B179: Chips herbes | C179: 1090 | D179: 1.68
A180: Good eating | B180: Chips Huguette | C180: 1089 | D180: 1.4
A181: Good eating | B181: Chips nature | C181: 618 | D181: 0.65
A182: Good eating | B182: Club sandwich Coreen | C182: 610 | D182: 2.73
A183: Good eating | B183: Club sandwich Jambon | C183: 611 | D183: 2.86
A184: Good eating | B184: Club Vegetarien | C184: 612 | D184: 3.19
A185: Good eating | B185: Cookies | C185: 1159 | D185: 1.9
A186: Good eating | B186: Cookies amande | C186: 1097 | D186: 1.9
A187: Good eating | B187: Liegeois chocolat | C187: 616 | D187: 1.33
A188: Good eating | B188: Loaf bread | C188: 1158 | D188: 1.71
A189: Good eating | B189: Mousse au chocolat | C189: 1157 | D189: 2.09
A190: Good eating | B190: Nouilees | C190: 1155 | D190: 4.41
A191: Good eating | B191: Pate bolo | C191: 1161 | D191: 4.19
A192: Good eating | B192: Pop corn | C192: 1091 | D192: 1.29
A193: Good eating | B193: Pot de cacahuete | C193: 1096 | D193: 3.11
A194: Good eating | B194: Poulet aigre douce | C194: 1156 | D194: 3.92
A195: Good eating | B195: Salade de pates | C195: 1160 | D195: 4.4
A196: Good eating | B196: Salade quinoa | C196: 609 | D196: 5.2
A197: Good eating | B197: Saucisson sec | C197: 1103 | D197: 1.25
A198: Good eating | B198: Shaker ananas | C198: 1154 | D198: 2.97
A199: Good eating | B199: Shaker grenade | C199: 1153 | D199: 2.97
A200: Good eating | B200: So chips | C200: 1088 | D200: 0.69
A201: Good eating | B201: Souffle chocolat | C201: 1101 | D201: 3.7
... 345 more rows

Sheet Données (hidden)
A1: Type | B1: Date | C1: Montant | D1: Fournisseur | E1: Lieu | F1: Opérateur | G1: Mois | H1: Jour | I1: Année | J1: MoisAffiché | L1: Mois | M1: Factures | N1: Ca | O1: Ratio | Q1: Id_Pertes | R1: Date | S1: Pertes | T1: Repas | U1: Retro | V1: Offerts
A2: Facture | B2: 45959 | C2: 976.27 | D2: Sysco | E2: Roissy | F2: Michel | G2: =TEXT(B2,"mmm-aaaa") -> oct-2025 | H2: =TEXT(B2,"jj-mmm") -> 29-oct | I2: =YEAR(B2) -> 2025 | J2: =TEXT(B2,"aaaa-mm") -> 2025-10 | L2: 2025-10 | M2: 24097.21 | N2: 67079.53 | O2: 0.3592334353 | Q2: 1 | R2: 2024-02-01 | S2: 491.42 | T2: 704.5 | U2: 1243.5 | V2: 0
A3: Facture | B3: 45959 | C3: 357.43 | D3: Le Comptoir du Frais | E3: Roissy | F3: Michel | G3: oct-2025 | H3: 29-oct | I3: 2025 | J3: 2025-10 | L3: 2025-09 | M3: 27601.92 | N3: 76672.43 | O3: 0.359997981
A4: Facture | B4: 45959 | C4: 197.81 | D4: Charraire | E4: Roissy | F4: Michel | G4: oct-2025 | H4: 29-oct | I4: 2025 | J4: 2025-10 | L4: 2025-08 | M4: 18740.28 | N4: 47103.58 | O4: 0.3978525624
A5: Facture | B5: 45958 | C5: 1747.98 | D5: Sysco | E5: Roissy | F5: Michel | G5: oct-2025 | H5: 28-oct | I5: 2025 | J5: 2025-10 | L5: 2025-07 | M5: 18280.84 | N5: 56347.45 | O5: 0.324430653
A6: Facture | B6: 45958 | C6: 512.83 | D6: Le Comptoir du Frais | E6: Roissy | F6: Michel | G6: oct-2025 | H6: 28-oct | I6: 2025 | J6: 2025-10 | L6: 2025-06 | M6: 26473.57 | N6: 81459.3 | O6: 0.3249913761
A7: Facture | B7: 45958 | C7: 273.01 | D7: Charraire | E7: Roissy | F7: Michel | G7: oct-2025 | H7: 28-oct | I7: 2025 | J7: 2025-10 | L7: 2025-05 | M7: 19228.86 | N7: 57582.41 | O7: 0.3339363531
A8: Facture | B8: 45957 | C8: 457.76 | D8: Sysco | E8: Roissy | F8: Michel | G8: oct-2025 | H8: 27-oct | I8: 2025 | J8: 2025-10 | L8: 2025-04 | M8: 21218.85 | N8: 65917.44 | O8: 0.3219003954
A9: Facture | B9: 45954 | C9: 700.14 | D9: La BIF | E9: Roissy | F9: Michel | G9: oct-2025 | H9: 24-oct | I9: 2025 | J9: 2025-10 | L9: 2025-03 | M9: 18906.79 | N9: 58282.41 | O9: 0.3243995916
A10: Facture | B10: 45954 | C10: 312.26 | D10: Sysco | E10: Roissy | F10: Michel | G10: oct-2025 | H10: 24-oct | I10: 2025 | J10: 2025-10 | L10: 2025-02 | M10: 14352.05 | N10: 44233.7 | O10: 0.3244596315
A11: Facture | B11: 45954 | C11: 134.72 | D11: Charraire | E11: Roissy | F11: Michel | G11: oct-2025 | H11: 24-oct | I11: 2025 | J11: 2025-10 | L11: 2025-01 | M11: 24432.87 | N11: 65404.06 | O11: 0.3735680935
A12: Facture | B12: 45954 | C12: 297.06 | D12: Passion Froid | E12: Roissy | F12: Michel | G12: oct-2025 | H12: 24-oct | I12: 2025 | J12: 2025-10 | L12: 2024-12 | M12: 17511.1 | N12: 47806.33 | O12: 0.3662924972
A13: Facture | B13: 45953 | C13: 173.97 | D13: Sysco | E13: Roissy | F13: Michel | G13: oct-2025 | H13: 23-oct | I13: 2025 | J13: 2025-10 | L13: 2024-11 | M13: 19258.31 | N13: 59897.2 | O13: 0.3215227089
A14: Facture | B14: 45953 | C14: 293.75 | D14: Charraire | E14: Roissy | F14: Michel | G14: oct-2025 | H14: 23-oct | I14: 2025 | J14: 2025-10 | L14: 2024-10 | M14: 23273.92 | N14: 70855.97 | O14: 0.3284680176
A15: Facture | B15: 45952 | C15: 165.05 | D15: Sysco | E15: Roissy | F15: Michel | G15: oct-2025 | H15: 22-oct | I15: 2025 | J15: 2025-10 | L15: 2024-09 | M15: 28985.57 | N15: 90107.48 | O15: 0.3216777342
A16: Facture | B16: 45951 | C16: 1105.64 | D16: Sysco | E16: Roissy | F16: Michel | G16: oct-2025 | H16: 21-oct | I16: 2025 | J16: 2025-10 | L16: 2024-08 | M16: 20188.88 | N16: 67715.54 | O16: 0.2981424943
A17: Facture | B17: 45951 | C17: 255.44 | D17: Charraire | E17: Roissy | F17: Michel | G17: oct-2025 | H17: 21-oct | I17: 2025 | J17: 2025-10 | L17: 2024-07 | M17: 24203.23 | N17: 78144.17 | O17: 0.3097253448
A18: Facture | B18: 45948 | C18: 674.75 | D18: La BIF | E18: Roissy | F18: Michel | G18: oct-2025 | H18: 18-oct | I18: 2025 | J18: 2025-10 | L18: 2024-06 | M18: 26933.95 | N18: 75916.41 | O18: 0.354784295
A19: Facture | B19: 45947 | C19: 253.03 | D19: Joceane | E19: Roissy | F19: Michel | G19: oct-2025 | H19: 17-oct | I19: 2025 | J19: 2025-10 | L19: 2024-05 | M19: 9795.69 | N19: 31450.96 | O19: 0.3114591733
A20: Facture | B20: 45947 | C20: 157.14 | D20: Sysco | E20: Roissy | F20: Michel | G20: oct-2025 | H20: 17-oct | I20: 2025 | J20: 2025-10 | L20: 2024-04 | M20: 19197.15 | N20: 63734.06 | O20: 0.3012070783
A21: Facture | B21: 45947 | C21: 72.43 | D21: Charraire | E21: Roissy | F21: Michel | G21: oct-2025 | H21: 17-oct | I21: 2025 | J21: 2025-10 | L21: 2024-03 | M21: 22479.36 | N21: 66597.31 | O21: 0.3375415614
A22: Facture | B22: 45946 | C22: 610.94 | D22: Sysco | E22: Roissy | F22: Michel | G22: oct-2025 | H22: 16-oct | I22: 2025 | J22: 2025-10 | L22: 2024-02 | M22: 12708.5 | N22: 40075.6 | O22: 0.3171131561
A23: Facture | B23: 45946 | C23: 140.65 | D23: Charraire | E23: Roissy | F23: Michel | G23: oct-2025 | H23: 16-oct | I23: 2025 | J23: 2025-10 | L23: 2024-01 | M23: 20378.44 | N23: 57753.17 | O23: 0.3528540511
A24: Facture | B24: 45946 | C24: 108.95 | D24: Bharlev | E24: Roissy | F24: Michel | G24: oct-2025 | H24: 16-oct | I24: 2025 | J24: 2025-10 | L24: 2025-11 | N24: 3995.18 | O24: 0
A25: Facture | B25: 45945 | C25: 313.9 | D25: Sysco | E25: Roissy | F25: Michel | G25: oct-2025 | H25: 15-oct | I25: 2025 | J25: 2025-10
A26: Facture | B26: 45944 | C26: 1181.41 | D26: Sysco | E26: Roissy | F26: Michel | G26: oct-2025 | H26: 14-oct | I26: 2025 | J26: 2025-10
A27: Facture | B27: 45944 | C27: 231.67 | D27: Le Comptoir du Frais | E27: Roissy | F27: Michel | G27: oct-2025 | H27: 14-oct | I27: 2025 | J27: 2025-10
A28: Facture | B28: 45944 | C28: 214.49 | D28: Charraire | E28: Roissy | F28: Michel | G28: oct-2025 | H28: 14-oct | I28: 2025 | J28: 2025-10
A29: Facture | B29: 45943 | C29: 494.5 | D29: La BIF | E29: Roissy | F29: Michel | G29: oct-2025 | H29: 13-oct | I29: 2025 | J29: 2025-10
A30: Facture | B30: 45940 | C30: 419.5 | D30: Joceane | E30: Roissy | F30: Michel | G30: oct-2025 | H30: 10-oct | I30: 2025 | J30: 2025-10
A31: Facture | B31: 45940 | C31: 728.97 | D31: Sysco | E31: Roissy | F31: Michel | G31: oct-2025 | H31: 10-oct | I31: 2025 | J31: 2025-10
A32: Facture | B32: 45940 | C32: 221.39 | D32: Charraire | E32: Roissy | F32: Michel | G32: oct-2025 | H32: 10-oct | I32: 2025 | J32: 2025-10
A33: Facture | B33: 45940 | C33: 462.44 | D33: Passion Froid | E33: Roissy | F33: Michel | G33: oct-2025 | H33: 10-oct | I33: 2025 | J33: 2025-10
A34: Facture | B34: 45938 | C34: 808.07 | D34: Sysco | E34: Roissy | F34: Michel | G34: oct-2025 | H34: 08-oct | I34: 2025 | J34: 2025-10
A35: Facture | B35: 45938 | C35: 324.36 | D35: Anthes | E35: Roissy | F35: Michel | G35: oct-2025 | H35: 08-oct | I35: 2025 | J35: 2025-10
A36: Facture | B36: 45938 | C36: 724.61 | D36: Le Comptoir du Frais | E36: Roissy | F36: Michel | G36: oct-2025 | H36: 08-oct | I36: 2025 | J36: 2025-10
A37: Facture | B37: 45938 | C37: 162.34 | D37: Charraire | E37: Roissy | F37: Michel | G37: oct-2025 | H37: 08-oct | I37: 2025 | J37: 2025-10
A38: Facture | B38: 45938 | C38: 456.94 | D38: Gammes des Chefs | E38: Roissy | F38: Michel | G38: oct-2025 | H38: 08-oct | I38: 2025 | J38: 2025-10
A39: Facture | B39: 45937 | C39: 839.64 | D39: Sysco | E39: Roissy | F39: Michel | G39: oct-2025 | H39: 07-oct | I39: 2025 | J39: 2025-10
A40: Facture | B40: 45937 | C40: 339.88 | D40: Charraire | E40: Roissy | F40: Michel | G40: oct-2025 | H40: 07-oct | I40: 2025 | J40: 2025-10
A41: Facture | B41: 45937 | C41: 303.22 | D41: Bharlev | E41: Roissy | F41: Michel | G41: oct-2025 | H41: 07-oct | I41: 2025 | J41: 2025-10
A42: Facture | B42: 45936 | C42: 517.58 | D42: Sysco | E42: Roissy | F42: Michel | G42: oct-2025 | H42: 06-oct | I42: 2025 | J42: 2025-10
A43: Facture | B43: 45933 | C43: 420.52 | D43: Joceane | E43: Roissy | F43: Michel | G43: oct-2025 | H43: 03-oct | I43: 2025 | J43: 2025-10
A44: Facture | B44: 45933 | C44: 1288.87 | D44: Sysco | E44: Roissy | F44: Michel | G44: oct-2025 | H44: 03-oct | I44: 2025 | J44: 2025-10
A45: Facture | B45: 45933 | C45: 488.99 | D45: La BIF | E45: Roissy | F45: Michel | G45: oct-2025 | H45: 03-oct | I45: 2025 | J45: 2025-10
A46: Facture | B46: 45933 | C46: 143.89 | D46: Charraire | E46: Roissy | F46: Michel | G46: oct-2025 | H46: 03-oct | I46: 2025 | J46: 2025-10
A47: Facture | B47: 45932 | C47: 765.68 | D47: La BIF | E47: Roissy | F47: Michel | G47: oct-2025 | H47: 02-oct | I47: 2025 | J47: 2025-10
A48: Facture | B48: 45932 | C48: 236.27 | D48: Charraire | E48: Roissy | F48: Michel | G48: oct-2025 | H48: 02-oct | I48: 2025 | J48: 2025-10
A49: Facture | B49: 45931 | C49: 1398.98 | D49: Sysco | E49: Roissy | F49: Michel | G49: oct-2025 | H49: 01-oct | I49: 2025 | J49: 2025-10
A50: Facture | B50: 45931 | C50: 108.59 | D50: Charraire | E50: Roissy | F50: Michel | G50: oct-2025 | H50: 01-oct | I50: 2025 | J50: 2025-10
A51: Facture | B51: 45931 | C51: 226.64 | D51: Episaveurs | E51: Roissy | F51: Michel | G51: oct-2025 | H51: 01-oct | I51: 2025 | J51: 2025-10
A52: Facture | B52: 45931 | C52: 294.86 | D52: Bharlev | E52: Roissy | F52: Michel | G52: oct-2025 | H52: 01-oct | I52: 2025 | J52: 2025-10
A53: Facture | B53: 45930 | C53: 1436.55 | D53: Sysco | E53: Roissy | F53: Michel | G53: sept-2025 | H53: 30-sept | I53: 2025 | J53: 2025-09
A54: Facture | B54: 45930 | C54: 454.4 | D54: Charraire | E54: Roissy | F54: Michel | G54: sept-2025 | H54: 30-sept | I54: 2025 | J54: 2025-09
A55: Facture | B55: 45929 | C55: 498.99 | D55: Sysco | E55: Roissy | F55: Michel | G55: sept-2025 | H55: 29-sept | I55: 2025 | J55: 2025-09
A56: Facture | B56: 45929 | C56: 919.18 | D56: La BIF | E56: Roissy | F56: Michel | G56: sept-2025 | H56: 29-sept | I56: 2025 | J56: 2025-09
A57: Facture | B57: 45926 | C57: 939.47 | D57: Sysco | E57: Roissy | F57: Michel | G57: sept-2025 | H57: 26-sept | I57: 2025 | J57: 2025-09
A58: Facture | B58: 45926 | C58: 94.67 | D58: Charraire | E58: Roissy | F58: Michel | G58: sept-2025 | H58: 26-sept | I58: 2025 | J58: 2025-09
A59: Facture | B59: 45925 | C59: 1037.09 | D59: Sysco | E59: Roissy | F59: Michel | G59: sept-2025 | H59: 25-sept | I59: 2025 | J59: 2025-09
A60: Facture | B60: 45925 | C60: 917.16 | D60: La BIF | E60: Roissy | F60: Michel | G60: sept-2025 | H60: 25-sept | I60: 2025 | J60: 2025-09
A61: Facture | B61: 45925 | C61: 248.68 | D61: Charraire | E61: Roissy | F61: Michel | G61: sept-2025 | H61: 25-sept | I61: 2025 | J61: 2025-09
A62: Facture | B62: 45924 | C62: 223.39 | D62: Charraire | E62: Roissy | F62: Michel | G62: sept-2025 | H62: 24-sept | I62: 2025 | J62: 2025-09
A63: Facture | B63: 45924 | C63: 48 | D63: Episaveurs | E63: Roissy | F63: Michel | G63: sept-2025 | H63: 24-sept | I63: 2025 | J63: 2025-09
A64: Facture | B64: 45924 | C64: 276.71 | D64: Episaveurs | E64: Roissy | F64: Michel | G64: sept-2025 | H64: 24-sept | I64: 2025 | J64: 2025-09
A65: Facture | B65: 45924 | C65: 196.57 | D65: Bharlev | E65: Roissy | F65: Michel | G65: sept-2025 | H65: 24-sept | I65: 2025 | J65: 2025-09
A66: Facture | B66: 45924 | C66: 526.43 | D66: Sysco | E66: Roissy | F66: Michel | G66: =TEXT(B66,"mmm-aaaa") -> sept-2025 | H66: =TEXT(B66,"jj-mmm") -> 24-sept | I66: =YEAR(B66) -> 2025 | J66: =TEXT(B66,"aaaa-mm") -> 2025-09
A67: Facture | B67: 45923 | C67: 136.34 | D67: Le Comptoir du Frais | E67: Roissy | F67: Michel | G67: sept-2025 | H67: 23-sept | I67: 2025 | J67: 2025-09
A68: Facture | B68: 45922 | C68: 26 | D68: Charraire | E68: Roissy | F68: Michel | G68: sept-2025 | H68: 22-sept | I68: 2025 | J68: 2025-09
A69: Facture | B69: 45922 | C69: 214.52 | D69: Charraire | E69: Roissy | F69: Michel | G69: sept-2025 | H69: 22-sept | I69: 2025 | J69: 2025-09
A70: Facture | B70: 45919 | C70: 518.73 | D70: Joceane | E70: Roissy | F70: Michel | G70: sept-2025 | H70: 19-sept | I70: 2025 | J70: 2025-09
A71: Facture | B71: 45919 | C71: 300.98 | D71: La BIF | E71: Roissy | F71: Michel | G71: sept-2025 | H71: 19-sept | I71: 2025 | J71: 2025-09
A72: Facture | B72: 45919 | C72: 142.19 | D72: Charraire | E72: Roissy | F72: Michel | G72: sept-2025 | H72: 19-sept | I72: 2025 | J72: 2025-09
A73: Facture | B73: 45919 | C73: 331.41 | D73: Gammes des Chefs | E73: Roissy | F73: Michel | G73: sept-2025 | H73: 19-sept | I73: 2025 | J73: 2025-09
A74: Facture | B74: 45919 | C74: 809.54 | D74: Sysco | E74: Roissy | F74: Michel | G74: sept-2025 | H74: 19-sept | I74: 2025 | J74: 2025-09
A75: Facture | B75: 45918 | C75: 130.07 | D75: Charraire | E75: Roissy | F75: Michel | G75: sept-2025 | H75: 18-sept | I75: 2025 | J75: 2025-09
A76: Facture | B76: 45918 | C76: 568.89 | D76: Le Comptoir du Frais | E76: Roissy | F76: Michel | G76: sept-2025 | H76: 18-sept | I76: 2025 | J76: 2025-09
A77: Facture | B77: 45918 | C77: 461.46 | D77: Passion Froid | E77: Roissy | F77: Michel | G77: sept-2025 | H77: 18-sept | I77: 2025 | J77: 2025-09
A78: Facture | B78: 45918 | C78: 856.66 | D78: Sysco | E78: Roissy | F78: Michel | G78: sept-2025 | H78: 18-sept | I78: 2025 | J78: 2025-09
A79: Facture | B79: 45917 | C79: 340.4 | D79: Chassineau | E79: Roissy | F79: Michel | G79: sept-2025 | H79: 17-sept | I79: 2025 | J79: 2025-09
A80: Facture | B80: 45917 | C80: 132.73 | D80: Charraire | E80: Roissy | F80: Michel | G80: sept-2025 | H80: 17-sept | I80: 2025 | J80: 2025-09
A81: Facture | B81: 45917 | C81: 196.57 | D81: Bharlev | E81: Roissy | F81: Michel | G81: sept-2025 | H81: 17-sept | I81: 2025 | J81: 2025-09
A82: Facture | B82: 45917 | C82: 796.84 | D82: Sysco | E82: Roissy | F82: Michel | G82: sept-2025 | H82: 17-sept | I82: 2025 | J82: 2025-09
A83: Facture | B83: 45916 | C83: 149.7 | D83: Charraire | E83: Roissy | F83: Michel | G83: sept-2025 | H83: 16-sept | I83: 2025 | J83: 2025-09
A84: Facture | B84: 45916 | C84: 639.4 | D84: Gammes des Chefs | E84: Roissy | F84: Michel | G84: sept-2025 | H84: 16-sept | I84: 2025 | J84: 2025-09
A85: Facture | B85: 45916 | C85: 722.82 | D85: Sysco | E85: Roissy | F85: Michel | G85: sept-2025 | H85: 16-sept | I85: 2025 | J85: 2025-09
A86: Facture | B86: 45913 | C86: 119.86 | D86: Chassineau | E86: Roissy | F86: Michel | G86: sept-2025 | H86: 13-sept | I86: 2025 | J86: 2025-09
A87: Facture | B87: 45912 | C87: 198.01 | D87: Joceane | E87: Roissy | F87: Michel | G87: sept-2025 | H87: 12-sept | I87: 2025 | J87: 2025-09
A88: Facture | B88: 45912 | C88: 186.19 | D88: Charraire | E88: Roissy | F88: Michel | G88: sept-2025 | H88: 12-sept | I88: 2025 | J88: 2025-09
A89: Facture | B89: 45912 | C89: 711.05 | D89: Episaveurs | E89: Roissy | F89: Michel | G89: sept-2025 | H89: 12-sept | I89: 2025 | J89: 2025-09
A90: Facture | B90: 45912 | C90: 388.8 | D90: Sysco | E90: Roissy | F90: Michel | G90: sept-2025 | H90: 12-sept | I90: 2025 | J90: 2025-09
A91: Facture | B91: 45912 | C91: 474.95 | D91: Chassineau | E91: Roissy | F91: Michel | G91: sept-2025 | H91: 12-sept | I91: 2025 | J91: 2025-09
A92: Facture | B92: 45911 | C92: 290.05 | D92: Joceane | E92: Roissy | F92: Michel | G92: sept-2025 | H92: 11-sept | I92: 2025 | J92: 2025-09
A93: Facture | B93: 45911 | C93: 99.89 | D93: Charraire | E93: Roissy | F93: Michel | G93: sept-2025 | H93: 11-sept | I93: 2025 | J93: 2025-09
A94: Facture | B94: 45911 | C94: 559.15 | D94: Sysco | E94: Roissy | F94: Michel | G94: sept-2025 | H94: 11-sept | I94: 2025 | J94: 2025-09
A95: Facture | B95: 45910 | C95: 114.6 | D95: Charraire | E95: Roissy | F95: Michel | G95: sept-2025 | H95: 10-sept | I95: 2025 | J95: 2025-09
A96: Facture | B96: 45910 | C96: 183.63 | D96: Episaveurs | E96: Roissy | F96: Michel | G96: sept-2025 | H96: 10-sept | I96: 2025 | J96: 2025-09
A97: Facture | B97: 45910 | C97: 348.5 | D97: Passion Froid | E97: Roissy | F97: Michel | G97: sept-2025 | H97: 10-sept | I97: 2025 | J97: 2025-09
A98: Facture | B98: 45910 | C98: 375.77 | D98: Sysco | E98: Roissy | F98: Michel | G98: sept-2025 | H98: 10-sept | I98: 2025 | J98: 2025-09
A99: Facture | B99: 45910 | C99: 300.91 | D99: Chassineau | E99: Roissy | F99: Michel | G99: sept-2025 | H99: 10-sept | I99: 2025 | J99: 2025-09
A100: Facture | B100: 45909 | C100: 227.97 | D100: Charraire | E100: Roissy | F100: Michel | G100: sept-2025 | H100: 09-sept | I100: 2025 | J100: 2025-09
A101: Facture | B101: 45909 | C101: 2101.75 | D101: Sysco | E101: Roissy | F101: Michel | G101: sept-2025 | H101: 09-sept | I101: 2025 | J101: 2025-09
A102: Facture | B102: 45908 | C102: 295.76 | D102: Charraire | E102: Roissy | F102: Michel | G102: sept-2025 | H102: 08-sept | I102: 2025 | J102: 2025-09
A103: Facture | B103: 45906 | C103: 134.29 | D103: Charraire | E103: Roissy | F103: Michel | G103: sept-2025 | H103: 06-sept | I103: 2025 | J103: 2025-09
A104: Facture | B104: 45906 | C104: 105.79 | D104: Bharlev | E104: Roissy | F104: Michel | G104: sept-2025 | H104: 06-sept | I104: 2025 | J104: 2025-09
A105: Facture | B105: 45905 | C105: 296 | D105: Passion Froid | E105: Roissy | F105: Michel | G105: sept-2025 | H105: 05-sept | I105: 2025 | J105: 2025-09
A106: Facture | B106: 45905 | C106: 697.11 | D106: Sysco | E106: Roissy | F106: Michel | G106: sept-2025 | H106: 05-sept | I106: 2025 | J106: 2025-09
A107: Facture | B107: 45904 | C107: 110.28 | D107: Charraire | E107: Roissy | F107: Michel | G107: sept-2025 | H107: 04-sept | I107: 2025 | J107: 2025-09
A108: Facture | B108: 45904 | C108: 33.42 | D108: Charraire | E108: Roissy | F108: Michel | G108: sept-2025 | H108: 04-sept | I108: 2025 | J108: 2025-09
A109: Facture | B109: 45904 | C109: 374.86 | D109: Gammes des Chefs | E109: Roissy | F109: Michel | G109: sept-2025 | H109: 04-sept | I109: 2025 | J109: 2025-09
A110: Facture | B110: 45903 | C110: 13.5 | D110: Charraire | E110: Roissy | F110: Michel | G110: sept-2025 | H110: 03-sept | I110: 2025 | J110: 2025-09
A111: Facture | B111: 45903 | C111: 247.83 | D111: Gammes des Chefs | E111: Roissy | F111: Michel | G111: sept-2025 | H111: 03-sept | I111: 2025 | J111: 2025-09
A112: Facture | B112: 45903 | C112: 591.76 | D112: Episaveurs | E112: Roissy | F112: Michel | G112: sept-2025 | H112: 03-sept | I112: 2025 | J112: 2025-09
A113: Facture | B113: 45903 | C113: 1212.16 | D113: Passion Froid | E113: Roissy | F113: Michel | G113: sept-2025 | H113: 03-sept | I113: 2025 | J113: 2025-09
A114: Facture | B114: 45903 | C114: 349.72 | D114: Maison Laurence | E114: Roissy | F114: Michel | G114: sept-2025 | H114: 03-sept | I114: 2025 | J114: 2025-09
A115: Facture | B115: 45903 | C115: 388.75 | D115: Joceane | E115: Roissy | F115: Michel | G115: sept-2025 | H115: 03-sept | I115: 2025 | J115: 2025-09
A116: Facture | B116: 45902 | C116: 313.65 | D116: Charraire | E116: Roissy | F116: Michel | G116: sept-2025 | H116: 02-sept | I116: 2025 | J116: 2025-09
A117: Facture | B117: 45902 | C117: 150.29 | D117: Bharlev | E117: Roissy | F117: Michel | G117: sept-2025 | H117: 02-sept | I117: 2025 | J117: 2025-09
A118: Facture | B118: 45902 | C118: 313.13 | D118: Maison Laurence | E118: Roissy | F118: Michel | G118: sept-2025 | H118: 02-sept | I118: 2025 | J118: 2025-09
A119: Facture | B119: 45899 | C119: 228 | D119: Fadi | E119: Roissy | F119: Michel | G119: août-2025 | H119: 30-août | I119: 2025 | J119: 2025-08
A120: Facture | B120: 45899 | C120: 318.9 | D120: Chassineau | E120: Roissy | F120: Michel | G120: août-2025 | H120: 30-août | I120: 2025 | J120: 2025-08
A121: Facture | B121: 45898 | C121: 489.81 | D121: Passion Froid | E121: Roissy | F121: Michel | G121: août-2025 | H121: 29-août | I121: 2025 | J121: 2025-08
A122: Facture | B122: 45898 | C122: 136.03 | D122: Bharlev | E122: Roissy | F122: Michel | G122: août-2025 | H122: 29-août | I122: 2025 | J122: 2025-08
A123: Facture | B123: 45898 | C123: 208.32 | D123: Maison Laurence | E123: Roissy | F123: Michel | G123: août-2025 | H123: 29-août | I123: 2025 | J123: 2025-08
A124: Facture | B124: 45897 | C124: 170.12 | D124: Good eating | E124: Roissy | F124: Michel | G124: août-2025 | H124: 28-août | I124: 2025 | J124: 2025-08
A125: Facture | B125: 45895 | C125: 177.13 | D125: Marina Sea Food | E125: Roissy | F125: Michel | G125: août-2025 | H125: 26-août | I125: 2025 | J125: 2025-08
A126: Facture | B126: 45891 | C126: 793.71 | D126: Episaveurs | E126: Roissy | F126: Michel | G126: août-2025 | H126: 22-août | I126: 2025 | J126: 2025-08
A127: Facture | B127: 45891 | C127: 614.51 | D127: Passion Froid | E127: Roissy | F127: Michel | G127: août-2025 | H127: 22-août | I127: 2025 | J127: 2025-08
A128: Facture | B128: 45891 | C128: 386.75 | D128: Maison Laurence | E128: Roissy | F128: Michel | G128: août-2025 | H128: 22-août | I128: 2025 | J128: 2025-08
A129: Facture | B129: 45891 | C129: 441.97 | D129: Chassineau | E129: Roissy | F129: Michel | G129: août-2025 | H129: 22-août | I129: 2025 | J129: 2025-08
A130: Facture | B130: 45890 | C130: 696 | D130: Fadi | E130: Roissy | F130: Michel | G130: =TEXT(B130,"mmm-aaaa") -> août-2025 | H130: =TEXT(B130,"jj-mmm") -> 21-août | I130: =YEAR(B130) -> 2025 | J130: =TEXT(B130,"aaaa-mm") -> 2025-08
A131: Facture | B131: 45890 | C131: 99.95 | D131: Bharlev | E131: Roissy | F131: Michel | G131: août-2025 | H131: 21-août | I131: 2025 | J131: 2025-08
A132: Facture | B132: 45890 | C132: 288.78 | D132: Chassineau | E132: Roissy | F132: Michel | G132: août-2025 | H132: 21-août | I132: 2025 | J132: 2025-08
A133: Facture | B133: 45889 | C133: 200.47 | D133: Episaveurs | E133: Roissy | F133: Michel | G133: août-2025 | H133: 20-août | I133: 2025 | J133: 2025-08
A134: Facture | B134: 45889 | C134: 588.18 | D134: Marina Sea Food | E134: Roissy | F134: Michel | G134: août-2025 | H134: 20-août | I134: 2025 | J134: 2025-08
A135: Facture | B135: 45888 | C135: 654.92 | D135: Passion Froid | E135: Roissy | F135: Michel | G135: août-2025 | H135: 19-août | I135: 2025 | J135: 2025-08
A136: Facture | B136: 45888 | C136: 17.91 | D136: Maison Laurence | E136: Roissy | F136: Michel | G136: août-2025 | H136: 19-août | I136: 2025 | J136: 2025-08
A137: Facture | B137: 45887 | C137: 675.44 | D137: Gammes des Chefs | E137: Roissy | F137: Michel | G137: août-2025 | H137: 18-août | I137: 2025 | J137: 2025-08
A138: Facture | B138: 45887 | C138: 141.18 | D138: A l Olivier | E138: Roissy | F138: Michel | G138: août-2025 | H138: 18-août | I138: 2025 | J138: 2025-08
A139: Facture | B139: 45887 | C139: 362.78 | D139: Maison Laurence | E139: Roissy | F139: Michel | G139: août-2025 | H139: 18-août | I139: 2025 | J139: 2025-08
A140: Facture | B140: 45887 | C140: 466.56 | D140: Chassineau | E140: Roissy | F140: Michel | G140: août-2025 | H140: 18-août | I140: 2025 | J140: 2025-08
A141: Facture | B141: 45885 | C141: 642.83 | D141: Le Comptoir du Frais | E141: Roissy | F141: Michel | G141: août-2025 | H141: 16-août | I141: 2025 | J141: 2025-08
A142: Facture | B142: 45883 | C142: 1132 | D142: Fadi | E142: Roissy | F142: Michel | G142: août-2025 | H142: 14-août | I142: 2025 | J142: 2025-08
A143: Facture | B143: 45883 | C143: 78.62 | D143: Bharlev | E143: Roissy | F143: Michel | G143: août-2025 | H143: 14-août | I143: 2025 | J143: 2025-08
A144: Facture | B144: 45882 | C144: 64.87 | D144: Yogurt kitchen | E144: Roissy | F144: Michel | G144: août-2025 | H144: 13-août | I144: 2025 | J144: 2025-08
A145: Facture | B145: 45882 | C145: 463.01 | D145: Episaveurs | E145: Roissy | F145: Michel | G145: août-2025 | H145: 13-août | I145: 2025 | J145: 2025-08
A146: Facture | B146: 45882 | C146: 308.78 | D146: Good eating | E146: Roissy | F146: Michel | G146: août-2025 | H146: 13-août | I146: 2025 | J146: 2025-08
A147: Facture | B147: 45881 | C147: 312 | D147: Fadi | E147: Roissy | F147: Michel | G147: août-2025 | H147: 12-août | I147: 2025 | J147: 2025-08
A148: Facture | B148: 45881 | C148: 159.09 | D148: Maison Laurence | E148: Roissy | F148: Michel | G148: août-2025 | H148: 12-août | I148: 2025 | J148: 2025-08
A149: Facture | B149: 45880 | C149: 209.84 | D149: Compagnie des Desserts | E149: Roissy | F149: Michel | G149: août-2025 | H149: 11-août | I149: 2025 | J149: 2025-08
A150: Facture | B150: 45880 | C150: 1059.37 | D150: Gammes des Chefs | E150: Roissy | F150: Michel | G150: août-2025 | H150: 11-août | I150: 2025 | J150: 2025-08
A151: Facture | B151: 45880 | C151: 994.53 | D151: Passion Froid | E151: Roissy | F151: Michel | G151: août-2025 | H151: 11-août | I151: 2025 | J151: 2025-08
A152: Facture | B152: 45879 | C152: 328.67 | D152: Marina Sea Food | E152: Roissy | F152: Michel | G152: août-2025 | H152: 10-août | I152: 2025 | J152: 2025-08
A153: Facture | B153: 45878 | C153: 156.5 | D153: Le Comptoir du Frais | E153: Roissy | F153: Michel | G153: août-2025 | H153: 09-août | I153: 2025 | J153: 2025-08
A154: Facture | B154: 45878 | C154: 290.7 | D154: Maison Laurence | E154: Roissy | F154: Michel | G154: août-2025 | H154: 09-août | I154: 2025 | J154: 2025-08
A155: Facture | B155: 45877 | C155: 98.81 | D155: Bharlev | E155: Roissy | F155: Michel | G155: août-2025 | H155: 08-août | I155: 2025 | J155: 2025-08
A156: Facture | B156: 45876 | C156: 83.51 | D156: Maison Laurence | E156: Roissy | F156: Michel | G156: août-2025 | H156: 07-août | I156: 2025 | J156: 2025-08
A157: Facture | B157: 45876 | C157: 148.9 | D157: Marina Sea Food | E157: Roissy | F157: Michel | G157: août-2025 | H157: 07-août | I157: 2025 | J157: 2025-08
A158: Facture | B158: 45876 | C158: 479.01 | D158: Chassineau | E158: Roissy | F158: Michel | G158: août-2025 | H158: 07-août | I158: 2025 | J158: 2025-08
A159: Facture | B159: 45875 | C159: 256.87 | D159: Passion Froid | E159: Roissy | F159: Michel | G159: août-2025 | H159: 06-août | I159: 2025 | J159: 2025-08
A160: Facture | B160: 45874 | C160: 288.45 | D160: Passion Froid | E160: Roissy | F160: Michel | G160: août-2025 | H160: 05-août | I160: 2025 | J160: 2025-08
A161: Facture | B161: 45874 | C161: 193.24 | D161: Maison Laurence | E161: Roissy | F161: Michel | G161: août-2025 | H161: 05-août | I161: 2025 | J161: 2025-08
A162: Facture | B162: 45870 | C162: 129.3 | D162: L Arbre à Pain | E162: Roissy | F162: Michel | G162: août-2025 | H162: 01-août | I162: 2025 | J162: 2025-08
A163: Facture | B163: 45870 | C163: 438.43 | D163: Gammes des Chefs | E163: Roissy | F163: Michel | G163: août-2025 | H163: 01-août | I163: 2025 | J163: 2025-08
A164: Facture | B164: 45870 | C164: 228 | D164: Fadi | E164: Roissy | F164: Michel | G164: août-2025 | H164: 01-août | I164: 2025 | J164: 2025-08
A165: Facture | B165: 45870 | C165: 275.71 | D165: Episaveurs | E165: Roissy | F165: Michel | G165: août-2025 | H165: 01-août | I165: 2025 | J165: 2025-08
A166: Facture | B166: 45870 | C166: 681.33 | D166: Passion Froid | E166: Roissy | F166: Michel | G166: août-2025 | H166: 01-août | I166: 2025 | J166: 2025-08
A167: Facture | B167: 45870 | C167: 215.85 | D167: Maison Laurence | E167: Roissy | F167: Michel | G167: août-2025 | H167: 01-août | I167: 2025 | J167: 2025-08
A168: Facture | B168: 45870 | C168: 131.42 | D168: Bharlev | E168: Roissy | F168: Michel | G168: août-2025 | H168: 01-août | I168: 2025 | J168: 2025-08
A169: Facture | B169: 45870 | C169: 179.77 | D169: Marina Sea Food | E169: Roissy | F169: Michel | G169: août-2025 | H169: 01-août | I169: 2025 | J169: 2025-08
A170: Facture | B170: 45870 | C170: 553.45 | D170: Chassineau | E170: Roissy | F170: Michel | G170: août-2025 | H170: 01-août | I170: 2025 | J170: 2025-08
A171: Facture | B171: 45867 | C171: 113.32 | D171: Maison Laurence | E171: Roissy | F171: Michel | G171: juil-2025 | H171: 29-juil | I171: 2025 | J171: 2025-07
A172: Facture | B172: 45866 | C172: 245.78 | D172: Passion Froid | E172: Roissy | F172: Michel | G172: juil-2025 | H172: 28-juil | I172: 2025 | J172: 2025-07
A173: Facture | B173: 45866 | C173: 240.5 | D173: Good eating | E173: Roissy | F173: Michel | G173: juil-2025 | H173: 28-juil | I173: 2025 | J173: 2025-07
A174: Facture | B174: 45864 | C174: 145.84 | D174: Yogurt kitchen | E174: Roissy | F174: Michel | G174: juil-2025 | H174: 26-juil | I174: 2025 | J174: 2025-07
A175: Facture | B175: 45863 | C175: 321.43 | D175: Le Comptoir du Frais | E175: Roissy | F175: Michel | G175: juil-2025 | H175: 25-juil | I175: 2025 | J175: 2025-07
A176: Facture | B176: 45863 | C176: 434 | D176: Fadi | E176: Roissy | F176: Michel | G176: juil-2025 | H176: 25-juil | I176: 2025 | J176: 2025-07
A177: Facture | B177: 45863 | C177: 283.97 | D177: Episaveurs | E177: Roissy | F177: Michel | G177: juil-2025 | H177: 25-juil | I177: 2025 | J177: 2025-07
A178: Facture | B178: 45863 | C178: 76.25 | D178: Maison Laurence | E178: Roissy | F178: Michel | G178: juil-2025 | H178: 25-juil | I178: 2025 | J178: 2025-07
A179: Facture | B179: 45863 | C179: 131.34 | D179: Bharlev | E179: Roissy | F179: Michel | G179: juil-2025 | H179: 25-juil | I179: 2025 | J179: 2025-07
A180: Facture | B180: 45863 | C180: 129.5 | D180: Marina Sea Food | E180: Roissy | F180: Michel | G180: juil-2025 | H180: 25-juil | I180: 2025 | J180: 2025-07
A181: Facture | B181: 45862 | C181: 70.68 | D181: L Arbre à Pain | E181: Roissy | F181: Michel | G181: juil-2025 | H181: 24-juil | I181: 2025 | J181: 2025-07
A182: Facture | B182: 45862 | C182: 286.04 | D182: Gammes des Chefs | E182: Roissy | F182: Michel | G182: juil-2025 | H182: 24-juil | I182: 2025 | J182: 2025-07
A183: Facture | B183: 45862 | C183: 560.66 | D183: Passion Froid | E183: Roissy | F183: Michel | G183: juil-2025 | H183: 24-juil | I183: 2025 | J183: 2025-07
A184: Facture | B184: 45861 | C184: 240.96 | D184: Episaveurs | E184: Roissy | F184: Michel | G184: juil-2025 | H184: 23-juil | I184: 2025 | J184: 2025-07
A185: Facture | B185: 45861 | C185: 200 | D185: Episaveurs | E185: Roissy | F185: Michel | G185: juil-2025 | H185: 23-juil | I185: 2025 | J185: 2025-07
A186: Facture | B186: 45861 | C186: 109.77 | D186: Maison Laurence | E186: Roissy | F186: Michel | G186: juil-2025 | H186: 23-juil | I186: 2025 | J186: 2025-07
A187: Facture | B187: 45860 | C187: 138.37 | D187: Maison Laurence | E187: Roissy | F187: Michel | G187: juil-2025 | H187: 22-juil | I187: 2025 | J187: 2025-07
A188: Facture | B188: 45859 | C188: 124.78 | D188: L Arbre à Pain | E188: Roissy | F188: Michel | G188: juil-2025 | H188: 21-juil | I188: 2025 | J188: 2025-07
A189: Facture | B189: 45859 | C189: 438.71 | D189: Gammes des Chefs | E189: Roissy | F189: Michel | G189: juil-2025 | H189: 21-juil | I189: 2025 | J189: 2025-07
A190: Facture | B190: 45859 | C190: 252.08 | D190: Passion Froid | E190: Roissy | F190: Michel | G190: juil-2025 | H190: 21-juil | I190: 2025 | J190: 2025-07
A191: Facture | B191: 45857 | C191: 238 | D191: Fadi | E191: Roissy | F191: Michel | G191: juil-2025 | H191: 19-juil | I191: 2025 | J191: 2025-07
A192: Facture | B192: 45857 | C192: 100.79 | D192: Maison Laurence | E192: Roissy | F192: Michel | G192: juil-2025 | H192: 19-juil | I192: 2025 | J192: 2025-07
A193: Facture | B193: 45857 | C193: 124.36 | D193: Bharlev | E193: Roissy | F193: Michel | G193: juil-2025 | H193: 19-juil | I193: 2025 | J193: 2025-07
A194: Facture | B194: 45857 | C194: 153.05 | D194: Marina Sea Food | E194: Roissy | F194: Michel | G194: =TEXT(B194,"mmm-aaaa") -> juil-2025 | H194: =TEXT(B194,"jj-mmm") -> 19-juil | I194: =YEAR(B194) -> 2025 | J194: =TEXT(B194,"aaaa-mm") -> 2025-07
A195: Facture | B195: 45857 | C195: 496.99 | D195: Chassineau | E195: Roissy | F195: Michel | G195: juil-2025 | H195: 19-juil | I195: 2025 | J195: 2025-07
A196: Facture | B196: 45856 | C196: 155.4 | D196: Marina Sea Food | E196: Roissy | F196: Michel | G196: juil-2025 | H196: 18-juil | I196: 2025 | J196: 2025-07
A197: Facture | B197: 45855 | C197: 245.51 | D197: Passion Froid | E197: Roissy | F197: Michel | G197: juil-2025 | H197: 17-juil | I197: 2025 | J197: 2025-07
A198: Facture | B198: 45855 | C198: 107.02 | D198: Maison Laurence | E198: Roissy | F198: Michel | G198: juil-2025 | H198: 17-juil | I198: 2025 | J198: 2025-07
A199: Facture | B199: 45855 | C199: 282.1 | D199: Chassineau | E199: Roissy | F199: Michel | G199: juil-2025 | H199: 17-juil | I199: 2025 | J199: 2025-07
A200: Facture | B200: 45854 | C200: 120.26 | D200: L Arbre à Pain | E200: Roissy | F200: Michel | G200: juil-2025 | H200: 16-juil | I200: 2025 | J200: 2025-07
... 2274 more rows

Sheet Articles (hidden)
A1: Id_Article | B1: Fournisseur | C1: Désignations | D1: Matériel | E1: Prix | F1: Date_Maj | G1: Actif | L1: =SiteActuel -> Roissy
A2: 547 | B2: A l Olivier | C2: Huile d Olive basilic 250Gr | D2: 0 | E2: 9.6 | F2: 45355 | G2: 0
A3: 546 | B3: A l Olivier | C3: Huile de friteuse | D3: 0 | E3: 47.06 | F3: 45355 | G3: 0
A4: 540 | B4: A l Olivier | C4: Huile de Truffe | D4: 0 | E4: 3.8 | F4: 45323 | G4: 0
A5: 539 | B5: A l Olivier | C5: Tapenade | D5: 0 | E5: 3.2 | F5: 45337 | G5: 0
A6: 1335 | B6: A l Olivier | C6: Vinaigre tomate | D6: 0 | E6: 7.45 | F6: 45810 | G6: 0
A7: 1336 | B7: A l Olivier | C7: Vinaigre yuzu | D7: 0 | E7: 7.5 | F7: 45810 | G7: 0
A8: 1039 | B8: Bharlev | C8: Boursin | D8: 0 | E8: 18.74 | F8: 45413 | G8: 1
A9: 1042 | B9: Bharlev | C9: Confiture bonne maman abricot 4 pces | D9: 0 | E9: 4.57 | F9: 45413 | G9: 1
A10: 1040 | B10: Bharlev | C10: Confiture bonne maman figue 1 pces | D10: 0 | E10: 2.89 | F10: 45413 | G10: 1
A11: 1044 | B11: Bharlev | C11: Confiture bonne maman fraise 5 pces | D11: 0 | E11: 4.61 | F11: 45413 | G11: 1
A12: 1043 | B12: Bharlev | C12: Confiture bonne maman lait 3pces | D12: 0 | E12: 4.65 | F12: 45413 | G12: 1
A13: 1041 | B13: Bharlev | C13: Confiture bonne maman orange 4 pces | D13: 0 | E13: 3.64 | F13: 45413 | G13: 1
A14: 1038 | B14: Bharlev | C14: Green detox 1 litre | D14: 0 | E14: 4.99 | F14: 45413 | G14: 1
A15: 1069 | B15: Bharlev | C15: Jus ananas | D15: 0 | E15: 2.6 | F15: 45472 | G15: 1
A16: 1037 | B16: Bharlev | C16: Jus d orange frais 10 litre | D16: 0 | E16: 2.63 | F16: 45413 | G16: 1
A17: 542 | B17: Bharlev | C17: Jus de Carotte | D17: 0 | E17: 3.9 | F17: 45355 | G17: 1
A18: 1293 | B18: Bharlev | C18: Jus de pomme | D18: 0 | E18: 3.5 | F18: 45747 | G18: 1
A19: 1045 | B19: Bharlev | C19: Pate de cacahuete 8pces | D19: 0 | E19: 3.85 | F19: 45413 | G19: 1
A20: 1323 | B20: Bharlev | C20: salade de fruit saisons | D20: 0 | E20: 3.71 | F20: 45777 | G20: 1
A21: 541 | B21: Bharlev | C21: Salade de Fruits Exotiques | D21: 0 | E21: 4.3 | F21: 45355 | G21: 1
A22: 543 | B22: Bharlev | C22: Smoothie Ananas Mangue | D22: 0 | E22: 4.76 | F22: 45355 | G22: 1
A23: 1322 | B23: Bharlev | C23: Smoothie fraise | D23: 0 | E23: 4.5 | F23: 45777 | G23: 1
A24: 1321 | B24: Bharlev | C24: smoothie mangue | D24: 0 | E24: 4.77 | F24: 45777 | G24: 1
A25: 454 | B25: Café Richard | C25: Bib Multi Novadelta | D25: 0 | E25: 105 | F25: 45336 | G25: 1
A26: 452 | B26: Café Richard | C26: Bib Orange Novadelta | D26: 0 | E26: 100 | F26: 45336 | G26: 1
A27: 449 | B27: Café Richard | C27: Bib Orange Oc22 | D27: 0 | E27: 2.26 | F27: 45336 | G27: 1
A28: 450 | B28: Café Richard | C28: Bib Pamp Oc 22 | D28: 0 | E28: 1.83 | F28: 45336 | G28: 1
A29: 453 | B29: Café Richard | C29: Bib Pomme Novadelta | D29: 0 | E29: 90 | F29: 45336 | G29: 1
A30: 451 | B30: Café Richard | C30: Bib Pommes Oc22 | D30: 0 | E30: 2.3 | F30: 45336 | G30: 1
A31: 455 | B31: Café Richard | C31: Cafe Grains Gourmet | D31: 0 | E31: 13.42 | F31: 45336 | G31: 1
A32: 458 | B32: Café Richard | C32: Cappucino En Poudre | D32: 0 | E32: 11.6 | F32: 45336 | G32: 1
A33: 456 | B33: Café Richard | C33: Chocolat En Poudre | D33: 0 | E33: 10.8 | F33: 45336 | G33: 1
A34: 457 | B34: Café Richard | C34: Decafeine en poudre | D34: 0 | E34: 10.8 | F34: 45336 | G34: 1
A35: 459 | B35: Café Richard | C35: Lait en Poudre | D35: 0 | E35: 8.35 | F35: 45336 | G35: 1
A36: 1058 | B36: Cercle Vert | C36: Cake aux fruits | D36: 0 | E36: 58.3 | F36: 45472 | G36: 0
A37: 1294 | B37: Cercle Vert | C37: Citron confit | D37: 0 | E37: 5.31 | F37: 45747 | G37: 0
A38: 1055 | B38: Cercle Vert | C38: Confiture bm framboise | D38: 0 | E38: 5.62 | F38: 45440 | G38: 0
A39: 1167 | B39: Cercle Vert | C39: Lasagne | D39: 0 | E39: 22.02 | F39: 45565 | G39: 0
A40: 1166 | B40: Cercle Vert | C40: Mousseline | D40: 0 | E40: 17.09 | F40: 45565 | G40: 0
A41: 1119 | B41: Cercle Vert | C41: Orechiete | D41: 0 | E41: 3.13 | F41: 45504 | G41: 0
A42: 1168 | B42: Cercle Vert | C42: Salade mexicaine | D42: 0 | E42: 2.93 | F42: 45565 | G42: 0
A43: 1151 | B43: Cercle Vert | C43: Sirop d erable | D43: 0 | E43: 67 | F43: 45534 | G43: 0
A44: 1118 | B44: Cercle Vert | C44: Tagliatelle | D44: 0 | E44: 3.16 | F44: 45504 | G44: 0
A45: 1120 | B45: Cercle Vert | C45: Trofie | D45: 0 | E45: 1.78 | F45: 45504 | G45: 0
A46: 1532 | B46: Charraire | C46: ANANAS SWEET BATEAU CAT1 KG | D46: 0 | E46: 2.27 | F46: 45929 | G46: 1
A47: 1524 | B47: Charraire | C47: BANANE CAL.MOYEN KG | D47: 0 | E47: 2.41 | F47: 45929 | G47: 1
A48: 1565 | B48: Charraire | C48: BLANC POIREAUX KG | D48: 0 | E48: 5.4 | F48: 45929 | G48: 1
A49: 1573 | B49: Charraire | C49: CAROTTE PLATEAU CE2 KG | D49: 0 | E49: 1.9 | F49: 45929 | G49: 1
A50: 1564 | B50: Charraire | C50: CERFEUIL BOTTE | D50: 0 | E50: 0.7 | F50: 45929 | G50: 1
A51: 1521 | B51: Charraire | C51: CHAMP ERENGY-ERYNGII | D51: 0 | E51: 17.4 | F51: 45929 | G51: 1
A52: 1575 | B52: Charraire | C52: CHOU BOCK CHOY SHANGAI (PETIT VERT) KG | D52: 0 | E52: 4.54 | F52: 45929 | G52: 1
A53: 1545 | B53: Charraire | C53: CHOU CHINOIS CAT 1 | D53: 0 | E53: 2.99 | F53: 45929 | G53: 1
A54: 1523 | B54: Charraire | C54: CHOU PACK CHOY (GROS BLANC) KG | D54: 0 | E54: 8.28 | F54: 45929 | G54: 1
A55: 1570 | B55: Charraire | C55: CITRON CAL 5 KG CAT 2 | D55: 0 | E55: 3.48 | F55: 45929 | G55: 1
A56: 1550 | B56: Charraire | C56: CITRON VERT KG CAT1 | D56: 0 | E56: 3.98 | F56: 45929 | G56: 1
A57: 1551 | B57: Charraire | C57: CIVETTE-CIBOULETTE BOTTE | D57: 0 | E57: 0.6 | F57: 45929 | G57: 1
A58: 1576 | B58: Charraire | C58: CLEMENTINE CAL 2 KG | D58: 0 | E58: 4.09 | F58: 45929 | G58: 1
A59: 1587 | B59: Charraire | C59: CORIANDRE BOTTE | D59: 0 | E59: 0.6 | F59: 45929 | G59: 1
A60: 1558 | B60: Charraire | C60: COURGE BUTTERNUT LOCALE KG | D60: 0 | E60: 2.86 | F60: 45929 | G60: 1
A61: 1588 | B61: Charraire | C61: COURGETTE (CAL 14/21CM) KG | D61: 0 | E61: 2.41 | F61: 45929 | G61: 1
A62: 1528 | B62: Charraire | C62: CRESS GDE FEUILLE SHISO VERT X12 KOPPERT BQ | D62: 0 | E62: 6.05 | F62: 45929 | G62: 1
A63: 1557 | B63: Charraire | C63: CRESS MELI MIX / SAKURA MIX HVE3 BASTELICA COLIS | D63: 0 | E63: 29.47 | F63: 45929 | G63: 1
A64: 1546 | B64: Charraire | C64: CRESS SHISO MIX 16 BQ KOPPERT | D64: 0 | E64: 20.95 | F64: 45929 | G64: 1
A65: 1567 | B65: Charraire | C65: ECHALOTE CUISSE DE POULET CAT1 5KG | D65: 0 | E65: 2.87 | F65: 45929 | G65: 1
A66: 1556 | B66: Charraire | C66: FIGUE NOIRE CAT1 KG | D66: 0 | E66: 6.82 | F66: 45929 | G66: 1
A67: 1561 | B67: Charraire | C67: FLEURS SOUCIS / ZINIA BQ | D67: 0 | E67: 6.98 | F67: 45929 | G67: 1
A68: 1540 | B68: Charraire | C68: FRAMBOISE BQ | D68: 0 | E68: 3.1 | F68: 45929 | G68: 1
A69: 1584 | B69: Charraire | C69: GINGEMBRE KG | D69: 0 | E69: 4.28 | F69: 45929 | G69: 1
A70: 1572 | B70: Charraire | C70: GRAINE COURGE BIO X250G (BDF500013) XC | D70: 0 | E70: 10.03 | F70: 45929 | G70: 1
A71: 1538 | B71: Charraire | C71: GROSEILLES ROUGE BQ | D71: 0 | E71: 3.39 | F71: 45929 | G71: 1
A72: 1568 | B72: Charraire | C72: HARICOT VERT EQUEUTE BARQ. KG | D72: 0 | E72: 11.61 | F72: 45929 | G72: 1
A73: 1559 | B73: Charraire | C73: KIWI CAL27 PCE CAT1 | D73: 0 | E73: 1.05 | F73: 45929 | G73: 1
A74: 1527 | B74: Charraire | C74: KIWI VERT CALIBRE 39 PCE CAT1 | D74: 0 | E74: 0.54 | F74: 45929 | G74: 1
A75: 1526 | B75: Charraire | C75: LAIT UHT 1/2 ECREME 1L (GC) | D75: 0 | E75: 2.03 | F75: 45929 | G75: 1
A76: 1536 | B76: Charraire | C76: MELANGE JEUNE P.BQ PURE-T KG | D76: 0 | E76: 12.98 | F76: 45929 | G76: 1
A77: 1548 | B77: Charraire | C77: MELANGE JEUNES POUSSES LOCALE HVE3 KG | D77: 0 | E77: 9.14 | F77: 45929 | G77: 1
A78: 1539 | B78: Charraire | C78: MELON CHARENTAIS KG | D78: 0 | E78: 2.29 | F78: 45929 | G78: 1
A79: 1592 | B79: Charraire | C79: MENTHE BOTTE | D79: 0 | E79: 0.53 | F79: 45929 | G79: 1
A80: 1529 | B80: Charraire | C80: MURES BQ | D80: 0 | E80: 4.22 | F80: 45929 | G80: 1
A81: 1574 | B81: Charraire | C81: MYRTILLES BQ | D81: 0 | E81: 3.16 | F81: 45929 | G81: 1
A82: 1578 | B82: Charraire | C82: NECTARINE BLANCHE B IMPORT KG CAT1 | D82: 0 | E82: 4.94 | F82: 45929 | G82: 1
A83: 1591 | B83: Charraire | C83: OIGNON AUXONNE 10 FLT KG HVE3 | D83: 0 | E83: 1.09 | F83: 45929 | G83: 1
A84: 1583 | B84: Charraire | C84: OIGNON AUXONNE AU KG HVE3 | D84: 0 | E84: 0.96 | F84: 45929 | G84: 1
A85: 1549 | B85: Charraire | C85: OIGNON CEBETTE BTE | D85: 0 | E85: 1.55 | F85: 45929 | G85: 1
A86: 1579 | B86: Charraire | C86: OIGNON FLT ROUGE 10KG | D86: 0 | E86: 1.84 | F86: 45929 | G86: 1
A87: 1537 | B87: Charraire | C87: ORANGE JUS CAL 5 KG CAT2 | D87: 0 | E87: 2.18 | F87: 45929 | G87: 1
A88: 1533 | B88: Charraire | C88: PASTEQUE CAT1 5/7 KG | D88: 0 | E88: 1.61 | F88: 45929 | G88: 1
A89: 1525 | B89: Charraire | C89: PATATE DOUCE XL KG | D89: 0 | E89: 2.5 | F89: 45929 | G89: 1
A90: 1530 | B90: Charraire | C90: PDT FRITABLE LAVEE (TRESOR) SAC 25 KG | D90: 0 | E90: 1.25 | F90: 45929 | G90: 1
A91: 1531 | B91: Charraire | C91: PDT GRENAILLE TYPE CHARLOTTE CT 12.5KG LOCAL | D91: 0 | E91: 2.5 | F91: 45929 | G91: 1
A92: 1535 | B92: Charraire | C92: PDT GT LAVÉE CT 10K LOCAL | D92: 0 | E92: 1.8 | F92: 45929 | G92: 1
A93: 1520 | B93: Charraire | C93: PDT GT TYPE BINTJ BROSSÉE FLT 25K LOCAL | D93: 0 | E93: 1.04 | F93: 45929 | G93: 1
A94: 1590 | B94: Charraire | C94: PERSIL PLAT BOTTE | D94: 0 | E94: 0.5 | F94: 45929 | G94: 1
A95: 1585 | B95: Charraire | C95: PIMENT ROUGE KG | D95: 0 | E95: 6.73 | F95: 45929 | G95: 1
A96: 1566 | B96: Charraire | C96: POIRE CONFERENCE 70/75 PLT CAT1 | D96: 0 | E96: 3.45 | F96: 45929 | G96: 1
A97: 1581 | B97: Charraire | C97: POIS GOURMAND EQ. BQTTE | D97: 0 | E97: 14.37 | F97: 45929 | G97: 1
A98: 1586 | B98: Charraire | C98: POIVRON JAUNE KG CAT1 | D98: 0 | E98: 3.91 | F98: 45929 | G98: 1
A99: 1569 | B99: Charraire | C99: POIVRON ROUGE KG CAT1 | D99: 0 | E99: 3.1 | F99: 45929 | G99: 1
A100: 1552 | B100: Charraire | C100: POIVRON VERT KG CAT1 | D100: 0 | E100: 2.67 | F100: 45929 | G100: 1
A101: 1547 | B101: Charraire | C101: POMELOS ROUGE "STAR RUBY" KG | D101: 0 | E101: 2.76 | F101: 45929 | G101: 1
A102: 1541 | B102: Charraire | C102: POMME BI-COLOR FRANCE 65/70 (115G/135G) BIO KG | D102: 0 | E102: 3.2 | F102: 45929 | G102: 1
A103: 1555 | B103: Charraire | C103: POMME GRANNY SMITH 70/75 (135G/180G) KG CAT1 | D103: 0 | E103: 2.25 | F103: 45929 | G103: 1
A104: 1534 | B104: Charraire | C104: POURPIER KG | D104: 0 | E104: 14.11 | F104: 45929 | G104: 1
A105: 1577 | B105: Charraire | C105: POUSSE MOUTARDE FRISEE ROUGE LOCAL KG | D105: 0 | E105: 15.5 | F105: 45929 | G105: 1
A106: 1562 | B106: Charraire | C106: PRUNE JAUNE FRANCE KG | D106: 0 | E106: 6.47 | F106: 45929 | G106: 1
A107: 1563 | B107: Charraire | C107: PRUNE REINE CLAUDE HVE KG | D107: 0 | E107: 11.44 | F107: 45929 | G107: 1
A108: 1580 | B108: Charraire | C108: PRUNE ROUGE FRANCE HVE KG | D108: 0 | E108: 6.32 | F108: 45929 | G108: 1
A109: 1553 | B109: Charraire | C109: PUREE P.D.T NATURE AVIKO SURG 4 X 2.5 KG | D109: 0 | E109: 3.19 | F109: 45929 | G109: 1
A110: 1582 | B110: Charraire | C110: RADIS ROUGE EQUETE SCT | D110: 0 | E110: 4.46 | F110: 45929 | G110: 1
A111: 1522 | B111: Charraire | C111: ROMAINE COEUR(BQX2PCES) 8 BQ CAT1 | D111: 0 | E111: 3.3 | F111: 45929 | G111: 1
A112: 1593 | B112: Charraire | C112: ROMARIN BOTTE | D112: 0 | E112: 0.64 | F112: 45929 | G112: 1
A113: 1560 | B113: Charraire | C113: SALADE MELANGE 4 GAMME JEUNE POUSSE 8 X 250 GR | D113: 0 | E113: 3.5 | F113: 45929 | G113: 1
A114: 1554 | B114: Charraire | C114: SALADE ROMAINE PCE | D114: 0 | E114: 1.32 | F114: 45929 | G114: 1
A115: 1544 | B115: Charraire | C115: SUCRINE 6 BQ | D115: 0 | E115: 4.25 | F115: 45929 | G115: 1
A116: 1543 | B116: Charraire | C116: TOMATE CERISE BQ CAT1 | D116: 0 | E116: 1.38 | F116: 45929 | G116: 1
A117: 1542 | B117: Charraire | C117: TOMATE PLATEAU 67/82MM (N°2) KG CAT1 | D117: 0 | E117: 3.95 | F117: 45929 | G117: 1
A118: 1589 | B118: Charraire | C118: TOMATE VRAC 57/67MM (N°3) KG CAT1 | D118: 0 | E118: 2.53 | F118: 45929 | G118: 1
A119: 1571 | B119: Charraire | C119: TOMATE VRAC 67/82MM (N°2) KG CAT1 | D119: 0 | E119: 2.49 | F119: 45929 | G119: 1
A120: 481 | B120: Chassineau | C120: Albuwhip | D120: 0 | E120: 29.06 | F120: 45336 | G120: 0
A121: 1291 | B121: Chassineau | C121: Bavette | D121: 0 | E121: 14.9 | F121: 45747 | G121: 0
A122: 499 | B122: Chassineau | C122: Cacao Poudre | D122: 0 | E122: 5.8 | F122: 45336 | G122: 0
A123: 1205 | B123: Chassineau | C123: Canard pac | D123: 0 | E123: 8.9 | F123: 45628 | G123: 0
A124: 478 | B124: Chassineau | C124: Chips Nature | D124: 0 | E124: 0.69 | F124: 45336 | G124: 0
A125: 484 | B125: Chassineau | C125: Chocolat Caraibes 66% | D125: 0 | E125: 16.04 | F125: 45336 | G125: 0
A126: 485 | B126: Chassineau | C126: Chocolat Framboise | D126: 0 | E126: 33.17 | F126: 45336 | G126: 0
A127: 483 | B127: Chassineau | C127: Chocolat Ivoir | D127: 0 | E127: 16.5 | F127: 45336 | G127: 0
A128: 494 | B128: Chassineau | C128: Chocolat Lactee | D128: 0 | E128: 15.41 | F128: 45336 | G128: 0
A129: 489 | B129: Chassineau | C129: Colorant Violet | D129: 0 | E129: 30.8 | F129: 45336 | G129: 0
A130: 486 | B130: Chassineau | C130: Cristal Rose | D130: 0 | E130: 51.98 | F130: 45336 | G130: 0
A131: 487 | B131: Chassineau | C131: Cristal Violette | D131: 0 | E131: 44.78 | F131: 45336 | G131: 0
A132: 592 | B132: Chassineau | C132: Cuisse de canard | D132: 0 | E132: 9.9 | F132: 45382 | G132: 0
A133: 482 | B133: Chassineau | C133: Dome Ivoir | D133: 0 | E133: 28.33 | F133: 45336 | G133: 0
A134: 1219 | B134: Chassineau | C134: Echine | D134: 0 | E134: 10.5 | F134: 45628 | G134: 0
A135: 1183 | B135: Chassineau | C135: Entrecote | D135: 0 | E135: 16.9 | F135: 45566 | G135: 0
A136: 1177 | B136: Chassineau | C136: Epaule dagneau | D136: 0 | E136: 13.9 | F136: 45565 | G136: 0
A137: 1290 | B137: Chassineau | C137: Epaule de veau | D137: 0 | E137: 12.9 | F137: 45747 | G137: 0
A138: 492 | B138: Chassineau | C138: Espuma Chaud | D138: 0 | E138: 16.93 | F138: 45336 | G138: 0
A139: 493 | B139: Chassineau | C139: Espuma Froid | D139: 0 | E139: 13.22 | F139: 45336 | G139: 0
A140: 475 | B140: Chassineau | C140: Filet De Poulet Ordinaire | D140: 0 | E140: 6.9 | F140: 45336 | G140: 0
A141: 477 | B141: Chassineau | C141: Foie Gras | D141: 0 | E141: 69.9 | F141: 45336 | G141: 0
A142: 474 | B142: Chassineau | C142: Magret De Canard | D142: 0 | E142: 15.9 | F142: 45336 | G142: 0
A143: 495 | B143: Chassineau | C143: Mini Tartelette Sucre | D143: 0 | E143: 2.88 | F143: 45336 | G143: 0
A144: 496 | B144: Chassineau | C144: Mini Tartelettes | D144: 1 | E144: 1 | F144: 45336 | G144: 0
A145: 479 | B145: Chassineau | C145: Moutarde Pommery | D145: 0 | E145: 7.87 | F145: 45336 | G145: 0
A146: 593 | B146: Chassineau | C146: Onglet de boeuf | D146: 0 | E146: 11.99 | F146: 45382 | G146: 0
A147: 488 | B147: Chassineau | C147: Pate Noisette | D147: 0 | E147: 34.58 | F147: 45336 | G147: 0
A148: 491 | B148: Chassineau | C148: Pectine | D148: 0 | E148: 26.56 | F148: 45336 | G148: 0
A149: 490 | B149: Chassineau | C149: Perle Croquante Framboise | D149: 0 | E149: 25 | F149: 45336 | G149: 0
A150: 480 | B150: Chassineau | C150: Pralin | D150: 0 | E150: 17.22 | F150: 45336 | G150: 0
A151: 473 | B151: Chassineau | C151: Ravioli vegetarien | D151: 0 | E151: 0.95 | F151: 45336 | G151: 0
A152: 476 | B152: Chassineau | C152: Rumsteack | D152: 0 | E152: 12.95 | F152: 45336 | G152: 0
A153: 1292 | B153: Chassineau | C153: Steack hache | D153: 0 | E153: 13.5 | F153: 45747 | G153: 0
A154: 1178 | B154: Chassineau | C154: Supreme de poulet jaune | D154: 0 | E154: 16.9 | F154: 45565 | G154: 0
A155: 472 | B155: Chassineau | C155: Supreme De Volaille Fermiere | D155: 0 | E155: 9.9 | F155: 45336 | G155: 0
A156: 471 | B156: Chassineau | C156: Tartare De Bœuf | D156: 0 | E156: 17.9 | F156: 45336 | G156: 0
A157: 497 | B157: Chassineau | C157: Tartelette Ronde | D157: 0 | E157: 27.81 | F157: 45336 | G157: 0
A158: 498 | B158: Chassineau | C158: Tartelette Sale | D158: 0 | E158: 1.1 | F158: 45336 | G158: 0
A159: 1237 | B159: Compagnie des Desserts | C159: buchette framboise | D159: 0 | E159: 2.25 | F159: 45663 | G159: 0
A160: 232 | B160: Compagnie des Desserts | C160: Cafe | D160: 0 | E160: 17.56 | F160: 45336 | G160: 0
A161: 228 | B161: Compagnie des Desserts | C161: Glace Chocolat Caraibe | D161: 0 | E161: 22.3 | F161: 45336 | G161: 0
A162: 230 | B162: Compagnie des Desserts | C162: Glace Griotte | D162: 0 | E162: 17.33 | F162: 45336 | G162: 0
A163: 231 | B163: Compagnie des Desserts | C163: Glace Lait Frais | D163: 0 | E163: 17.89 | F163: 45336 | G163: 0
A164: 240 | B164: Compagnie des Desserts | C164: Glace Peche De Vigne | D164: 0 | E164: 17.28 | F164: 45336 | G164: 0
A165: 227 | B165: Compagnie des Desserts | C165: Glace Vanille | D165: 0 | E165: 17.28 | F165: 45336 | G165: 0
A166: 233 | B166: Compagnie des Desserts | C166: Litchee | D166: 0 | E166: 17.72 | F166: 45336 | G166: 0
A167: 237 | B167: Compagnie des Desserts | C167: Marron | D167: 0 | E167: 22.3 | F167: 45336 | G167: 0
A168: 235 | B168: Compagnie des Desserts | C168: Mure | D168: 0 | E168: 15.52 | F168: 45336 | G168: 0
A169: 234 | B169: Compagnie des Desserts | C169: Noisette | D169: 0 | E169: 22.3 | F169: 45336 | G169: 0
A170: 229 | B170: Compagnie des Desserts | C170: Orange Sanguine | D170: 0 | E170: 22.4 | F170: 45336 | G170: 0
A171: 239 | B171: Compagnie des Desserts | C171: Sorbet Citron | D171: 0 | E171: 17.28 | F171: 45336 | G171: 0
A172: 238 | B172: Compagnie des Desserts | C172: Sorbet Fraise | D172: 0 | E172: 17.28 | F172: 45336 | G172: 0
A173: 236 | B173: Compagnie des Desserts | C173: Violette | D173: 0 | E173: 22.3 | F173: 45336 | G173: 0
A174: 94 | B174: Croissantime | C174: Baguette | D174: 0 | E174: 21.1 | F174: 45336 | G174: 0
A175: 97 | B175: Croissantime | C175: Baguette De Tradition Cuite | D175: 0 | E175: 0.7 | F175: 45336 | G175: 0
A176: 89 | B176: Croissantime | C176: Boule Rustique | D176: 0 | E176: 24.79 | F176: 45336 | G176: 0
A177: 96 | B177: Croissantime | C177: Burger Graine | D177: 0 | E177: 1.08 | F177: 45336 | G177: 0
A178: 90 | B178: Croissantime | C178: Cake Au Fruits | D178: 0 | E178: 7.5 | F178: 45336 | G178: 0
A179: 91 | B179: Croissantime | C179: Carre Rustique | D179: 0 | E179: 13.81 | F179: 45336 | G179: 0
A180: 104 | B180: Croissantime | C180: Chausson Pommes | D180: 0 | E180: 1.06 | F180: 45336 | G180: 0
A181: 101 | B181: Croissantime | C181: Croissant | D181: 0 | E181: 0.9 | F181: 45336 | G181: 0
A182: 92 | B182: Croissantime | C182: Grand Pocho Lalos | D182: 0 | E182: 8.79 | F182: 45336 | G182: 0
A183: 100 | B183: Croissantime | C183: Mini Baguette Campagne Cuite | D183: 0 | E183: 0.51 | F183: 45336 | G183: 0
A184: 99 | B184: Croissantime | C184: Mini Baguette Cereale Cuite | D184: 0 | E184: 0.49 | F184: 45336 | G184: 0
A185: 84 | B185: Croissantime | C185: Mini Croissant | D185: 0 | E185: 42.73 | F185: 45336 | G185: 0
A186: 85 | B186: Croissantime | C186: Mini Pain Chocolat | D186: 0 | E186: 47.23 | F186: 45336 | G186: 0
A187: 86 | B187: Croissantime | C187: Mini Pain Raisin | D187: 0 | E187: 50.43 | F187: 45336 | G187: 0
A188: 87 | B188: Croissantime | C188: Pain Au Noix | D188: 0 | E188: 5.38 | F188: 45336 | G188: 0
A189: 102 | B189: Croissantime | C189: Pain Chocolat | D189: 0 | E189: 0.87 | F189: 45336 | G189: 0
A190: 98 | B190: Croissantime | C190: Pain Complet 330Grs | D190: 0 | E190: 5.88 | F190: 45336 | G190: 0
A191: 93 | B191: Croissantime | C191: Pain De Mie | D191: 0 | E191: 4.52 | F191: 45336 | G191: 0
A192: 88 | B192: Croissantime | C192: Pain De Mie Cereale | D192: 0 | E192: 4.6 | F192: 45336 | G192: 0
A193: 103 | B193: Croissantime | C193: Pain Raisin | D193: 0 | E193: 1.01 | F193: 45336 | G193: 0
A194: 95 | B194: Croissantime | C194: Pain Sans Gluten | D194: 0 | E194: 44.07 | F194: 45336 | G194: 0
A195: 105 | B195: Croissantime | C195: Petit Pain Carre | D195: 0 | E195: 23.19 | F195: 45336 | G195: 0
A196: 1275 | B196: divers | C196: Crouton | D196: 0 | E196: 2.67 | F196: 45716 | G196: 0
A197: 1346 | B197: divers | C197: Eau de Javel | D197: 1 | E197: 2.9 | F197: 45834 | G197: 0
A198: 1274 | B198: divers | C198: Gressin | D198: 0 | E198: 3.54 | F198: 45716 | G198: 0
A199: 1276 | B199: divers | C199: Melange alsacien | D199: 0 | E199: 2.07 | F199: 45716 | G199: 0
A200: 1269 | B200: divers | C200: pop corn sale et sucre | D200: 0 | E200: 1.57 | F200: 45716 | G200: 0
... 954 more rows

Sheet BD_Inventaire (hidden)
A1: Nom | B1: Désignations | C1: Matériel | D1: Référence | E1: Quantité | F1: Prix | G1: Date | H1: Total | I1: Année
A2: A l Olivier | B2: Tapenade | C2: Non | D2: 539 | E2: 12 | F2: 3.1 | G2: 2024-03-01 | H2: =E2*F2 -> 37.2 | I2: =YEAR(G2) -> 2024
A3: A l Olivier | B3: Huile de Truffe | C3: Non | D3: 540 | E3: 3 | F3: 3.8 | G3: 2024-03-01 | H3: 11.4 | I3: 2024
A4: A l Olivier | B4: Huile de friteuse | C4: Non | D4: 546 | E4: 2 | F4: 47.06 | G4: 2024-03-01 | H4: 94.12 | I4: 2024
A5: A l Olivier | B5: Huile d Olive basilic 250Gr | C5: Non | D5: 547 | E5: 6 | F5: 9.6 | G5: 2024-03-01 | H5: 57.6 | I5: 2024
A6: Bharlev | B6: Salade de Fruits Exotiques | C6: Non | D6: 541 | E6: 12 | F6: 4.3 | G6: 2024-03-01 | H6: 51.6 | I6: 2024
A7: Bharlev | B7: Jus de Carotte | C7: Non | D7: 542 | E7: 2 | F7: 3.9 | G7: 2024-03-01 | H7: 7.8 | I7: 2024
A8: Bharlev | B8: Smoothie Ananas Mangue | C8: Non | D8: 543 | E8: 2 | F8: 4.76 | G8: 2024-03-01 | H8: 9.52 | I8: 2024
A9: Café Richard | B9: Bib Orange Oc22 | C9: Non | D9: 449 | E9: 1 | F9: 2.26 | G9: 2024-03-01 | H9: 2.26 | I9: 2024
A10: Café Richard | B10: Bib Pommes Oc22 | C10: Non | D10: 451 | E10: 2 | F10: 2.3 | G10: 2024-03-01 | H10: 4.6 | I10: 2024
A11: Café Richard | B11: Bib Pomme Novadelta | C11: Non | D11: 453 | E11: 2 | F11: 90 | G11: 2024-03-01 | H11: 180 | I11: 2024
A12: Café Richard | B12: Bib Multi Novadelta | C12: Non | D12: 454 | E12: 1 | F12: 105 | G12: 2024-03-01 | H12: 105 | I12: 2024
A13: Café Richard | B13: Cafe Grains Gourmet | C13: Non | D13: 455 | E13: 11 | F13: 13.42 | G13: 2024-03-01 | H13: 147.62 | I13: 2024
A14: Café Richard | B14: Chocolat En Poudre | C14: Non | D14: 456 | E14: 10 | F14: 10.8 | G14: 2024-03-01 | H14: 108 | I14: 2024
A15: Café Richard | B15: Decafeine en poudre | C15: Non | D15: 457 | E15: 2.5 | F15: 10.8 | G15: 2024-03-01 | H15: 27 | I15: 2024
A16: Café Richard | B16: Cappucino En Poudre | C16: Non | D16: 458 | E16: 12 | F16: 11.6 | G16: 2024-03-01 | H16: 139.2 | I16: 2024
A17: Café Richard | B17: Lait en Poudre | C17: Non | D17: 459 | E17: 17 | F17: 8.35 | G17: 2024-03-01 | H17: 141.95 | I17: 2024
A18: Chassineau | B18: Tartare De Bœuf | C18: Non | D18: 471 | E18: 3.2 | F18: 17.9 | G18: 2024-03-01 | H18: 57.28 | I18: 2024
A19: Chassineau | B19: Supreme De Volaille Fermiere | C19: Non | D19: 472 | E19: 3.2 | F19: 9.9 | G19: 2024-03-01 | H19: 31.68 | I19: 2024
A20: Chassineau | B20: Ravioli vegetarien | C20: Non | D20: 473 | E20: 8.8 | F20: 16.9 | G20: 2024-03-01 | H20: 148.72 | I20: 2024
A21: Chassineau | B21: Filet De Poulet Ordinaire | C21: Non | D21: 475 | E21: 6.9 | F21: 6.9 | G21: 2024-03-01 | H21: 47.61 | I21: 2024
A22: Chassineau | B22: Moutarde Pommery | C22: Non | D22: 479 | E22: 1 | F22: 7.87 | G22: 2024-03-01 | H22: 7.87 | I22: 2024
A23: Chassineau | B23: Pralin | C23: Non | D23: 480 | E23: 2.5 | F23: 17.22 | G23: 2024-03-01 | H23: 43.05 | I23: 2024
A24: Chassineau | B24: Albuwhip | C24: Non | D24: 481 | E24: 1 | F24: 29.06 | G24: 2024-03-01 | H24: 29.06 | I24: 2024
A25: Chassineau | B25: Dome Ivoir | C25: Non | D25: 482 | E25: 1 | F25: 28.33 | G25: 2024-03-01 | H25: 28.33 | I25: 2024
A26: Chassineau | B26: Cuisse de canard | C26: Non | D26: 592 | E26: 5 | F26: 9.9 | G26: 2024-03-01 | H26: 49.5 | I26: 2024
A27: Chassineau | B27: Chocolat Caraibes 66% | C27: Non | D27: 484 | E27: 6 | F27: 16.04 | G27: 2024-03-01 | H27: 96.24 | I27: 2024
A28: Chassineau | B28: Chocolat Framboise | C28: Non | D28: 485 | E28: 2 | F28: 33.17 | G28: 2024-03-01 | H28: 66.34 | I28: 2024
A29: Chassineau | B29: Cristal Rose | C29: Non | D29: 486 | E29: 1 | F29: 51.98 | G29: 2024-03-01 | H29: 51.98 | I29: 2024
A30: Chassineau | B30: Cristal Violette | C30: Non | D30: 487 | E30: 1 | F30: 44.78 | G30: 2024-03-01 | H30: 44.78 | I30: 2024
A31: Chassineau | B31: Pate Noisette | C31: Non | D31: 488 | E31: 1 | F31: 34.58 | G31: 2024-03-01 | H31: 34.58 | I31: 2024
A32: Chassineau | B32: Colorant Violet | C32: Non | D32: 489 | E32: 1 | F32: 30.8 | G32: 2024-03-01 | H32: 30.8 | I32: 2024
A33: Chassineau | B33: Perle Croquante Framboise | C33: Non | D33: 490 | E33: 0.3 | F33: 25 | G33: 2024-03-01 | H33: 7.5 | I33: 2024
A34: Chassineau | B34: Pectine | C34: Non | D34: 491 | E34: 1 | F34: 26.56 | G34: 2024-03-01 | H34: 26.56 | I34: 2024
A35: Chassineau | B35: Espuma Chaud | C35: Non | D35: 492 | E35: 1 | F35: 16.93 | G35: 2024-03-01 | H35: 16.93 | I35: 2024
A36: Chassineau | B36: Espuma Froid | C36: Non | D36: 493 | E36: 1 | F36: 13.22 | G36: 2024-03-01 | H36: 13.22 | I36: 2024
A37: Chassineau | B37: Chocolat Lactee | C37: Non | D37: 494 | E37: 7.5 | F37: 15.41 | G37: 2024-03-01 | H37: 115.575 | I37: 2024
A38: Chassineau | B38: Mini Tartelette Sucre | C38: Non | D38: 495 | E38: 126 | F38: 0.32 | G38: 2024-03-01 | H38: 40.32 | I38: 2024
A39: Chassineau | B39: Mini Tartelettes | C39: Oui | D39: 496 | E39: 84 | F39: 0.32 | G39: 2024-03-01 | H39: 26.88 | I39: 2024
A40: Chassineau | B40: Tartelette Ronde | C40: Non | D40: 497 | E40: 24 | F40: 0.82 | G40: 2024-03-01 | H40: 19.68 | I40: 2024
A41: Chassineau | B41: Tartelette Sale | C41: Non | D41: 498 | E41: 90 | F41: 1.1 | G41: 2024-03-01 | H41: 99 | I41: 2024
A42: Chassineau | B42: Cacao Poudre | C42: Non | D42: 499 | E42: 1 | F42: 5.8 | G42: 2024-03-01 | H42: 5.8 | I42: 2024
A43: Compagnie des Desserts | B43: Glace Vanille | C43: Non | D43: 227 | E43: 1 | F43: 17.28 | G43: 2024-03-01 | H43: 17.28 | I43: 2024
A44: Compagnie des Desserts | B44: Glace Chocolat Caraibe | C44: Non | D44: 228 | E44: 2 | F44: 22.3 | G44: 2024-03-01 | H44: 44.6 | I44: 2024
A45: Compagnie des Desserts | B45: Orange Sanguine | C45: Non | D45: 229 | E45: 1 | F45: 22.4 | G45: 2024-03-01 | H45: 22.4 | I45: 2024
A46: Compagnie des Desserts | B46: Glace Griotte | C46: Non | D46: 230 | E46: 1 | F46: 17.33 | G46: 2024-03-01 | H46: 17.33 | I46: 2024
A47: Compagnie des Desserts | B47: Glace Lait Frais | C47: Non | D47: 231 | E47: 1 | F47: 17.89 | G47: 2024-03-01 | H47: 17.89 | I47: 2024
A48: Compagnie des Desserts | B48: Cafe | C48: Non | D48: 232 | E48: 2 | F48: 17.56 | G48: 2024-03-01 | H48: 35.12 | I48: 2024
A49: Compagnie des Desserts | B49: Litchee | C49: Non | D49: 233 | E49: 1 | F49: 17.72 | G49: 2024-03-01 | H49: 17.72 | I49: 2024
A50: Compagnie des Desserts | B50: Noisette | C50: Non | D50: 234 | E50: 2 | F50: 22.3 | G50: 2024-03-01 | H50: 44.6 | I50: 2024
A51: Compagnie des Desserts | B51: Mure | C51: Non | D51: 235 | E51: 1 | F51: 15.52 | G51: 2024-03-01 | H51: 15.52 | I51: 2024
A52: Compagnie des Desserts | B52: Violette | C52: Non | D52: 236 | E52: 1 | F52: 22.3 | G52: 2024-03-01 | H52: 22.3 | I52: 2024
A53: Compagnie des Desserts | B53: Marron | C53: Non | D53: 237 | E53: 1 | F53: 22.3 | G53: 2024-03-01 | H53: 22.3 | I53: 2024
A54: Compagnie des Desserts | B54: Sorbet Fraise | C54: Non | D54: 238 | E54: 2 | F54: 17.28 | G54: 2024-03-01 | H54: 34.56 | I54: 2024
A55: Compagnie des Desserts | B55: Sorbet Citron | C55: Non | D55: 239 | E55: 2 | F55: 17.28 | G55: 2024-03-01 | H55: 34.56 | I55: 2024
A56: Compagnie des Desserts | B56: Glace Peche De Vigne | C56: Non | D56: 240 | E56: 2 | F56: 17.28 | G56: 2024-03-01 | H56: 34.56 | I56: 2024
A57: Croissantime | B57: Mini Croissant | C57: Non | D57: 84 | E57: 1.2 | F57: 42.73 | G57: 2024-03-01 | H57: 51.276 | I57: 2024
A58: Croissantime | B58: Mini Pain Chocolat | C58: Non | D58: 85 | E58: 1.1 | F58: 47.23 | G58: 2024-03-01 | H58: 51.953 | I58: 2024
A59: Croissantime | B59: Mini Pain Raisin | C59: Non | D59: 86 | E59: 1 | F59: 50.43 | G59: 2024-03-01 | H59: 50.43 | I59: 2024
A60: Croissantime | B60: Boule Rustique | C60: Non | D60: 89 | E60: 2 | F60: 24.79 | G60: 2024-03-01 | H60: 49.58 | I60: 2024
A61: Croissantime | B61: Cake Au Fruits | C61: Non | D61: 90 | E61: 2 | F61: 7.5 | G61: 2024-03-01 | H61: 15 | I61: 2024
A62: Croissantime | B62: Pain De Mie | C62: Non | D62: 93 | E62: 2.5 | F62: 4.52 | G62: 2024-03-01 | H62: 11.3 | I62: 2024
A63: Croissantime | B63: Baguette | C63: Non | D63: 94 | E63: 1 | F63: 21.1 | G63: 2024-03-01 | H63: 21.1 | I63: 2024
A64: Croissantime | B64: Pain Sans Gluten | C64: Non | D64: 95 | E64: 1.5 | F64: 44.07 | G64: 2024-03-01 | H64: 66.105 | I64: 2024
A65: Croissantime | B65: Burger Graine | C65: Non | D65: 96 | E65: 45 | F65: 1.08 | G65: 2024-03-01 | H65: 48.6 | I65: 2024
A66: Croissantime | B66: Petit Pain Carre | C66: Non | D66: 105 | E66: 1 | F66: 23.19 | G66: 2024-03-01 | H66: =E66*F66 -> 23.19 | I66: =YEAR(G66) -> 2024
A67: Episaveurs | B67: Madeleine | C67: Non | D67: 241 | E67: 1 | F67: 18.85 | G67: 2024-03-01 | H67: 18.85 | I67: 2024
A68: Episaveurs | B68: Ail Des Ours | C68: Non | D68: 242 | E68: 2 | F68: 8.9 | G68: 2024-03-01 | H68: 17.8 | I68: 2024
A69: Episaveurs | B69: Farine | C69: Non | D69: 243 | E69: 20 | F69: 0.5 | G69: 2024-03-01 | H69: 10 | I69: 2024
A70: Episaveurs | B70: Sirop D'Erable | C70: Non | D70: 244 | E70: 2 | F70: 11.34 | G70: 2024-03-01 | H70: 22.68 | I70: 2024
A71: Episaveurs | B71: Sucre Glace | C71: Non | D71: 245 | E71: 2.5 | F71: 1.83 | G71: 2024-03-01 | H71: 4.575 | I71: 2024
A72: Episaveurs | B72: Sucre Roux | C72: Non | D72: 246 | E72: 4 | F72: 3 | G72: 2024-03-01 | H72: 12 | I72: 2024
A73: Episaveurs | B73: Sucre | C73: Non | D73: 247 | E73: 6 | F73: 0.86 | G73: 2024-03-01 | H73: 5.16 | I73: 2024
A74: Episaveurs | B74: Gelatine | C74: Non | D74: 248 | E74: 0.5 | F74: 37.91 | G74: 2024-03-01 | H74: 18.955 | I74: 2024
A75: Episaveurs | B75: Fecule | C75: Non | D75: 249 | E75: 5 | F75: 3.05 | G75: 2024-03-01 | H75: 15.25 | I75: 2024
A76: Episaveurs | B76: Poudre A Creme | C76: Non | D76: 250 | E76: 1 | F76: 8.76 | G76: 2024-03-01 | H76: 8.76 | I76: 2024
A77: Episaveurs | B77: Maizena | C77: Non | D77: 251 | E77: 1.5 | F77: 4.02 | G77: 2024-03-01 | H77: 6.03 | I77: 2024
A78: Episaveurs | B78: Cacahuete | C78: Non | D78: 253 | E78: 1.8 | F78: 4.14 | G78: 2024-03-01 | H78: 7.452 | I78: 2024
A79: Episaveurs | B79: Sirop Glucose | C79: Non | D79: 254 | E79: 1 | F79: 5.95 | G79: 2024-03-01 | H79: 5.95 | I79: 2024
A80: Episaveurs | B80: Chocolat Blanc | C80: Non | D80: 255 | E80: 1.8 | F80: 14 | G80: 2024-03-01 | H80: 25.2 | I80: 2024
A81: Episaveurs | B81: Chocolat Noir | C81: Non | D81: 256 | E81: 5 | F81: 8.85 | G81: 2024-03-01 | H81: 44.25 | I81: 2024
A82: Episaveurs | B82: Chocolat Au Lait | C82: Non | D82: 257 | E82: 2.5 | F82: 11.34 | G82: 2024-03-01 | H82: 28.35 | I82: 2024
A83: Episaveurs | B83: Amande Poudre | C83: Non | D83: 258 | E83: 2 | F83: 10.3 | G83: 2024-03-01 | H83: 20.6 | I83: 2024
A84: Episaveurs | B84: Noisette Poudre | C84: Non | D84: 259 | E84: 1 | F84: 9.44 | G84: 2024-03-01 | H84: 9.44 | I84: 2024
A85: Episaveurs | B85: Speculoos Brisure | C85: Non | D85: 260 | E85: 2 | F85: 6.57 | G85: 2024-03-01 | H85: 13.14 | I85: 2024
A86: Episaveurs | B86: Noix Cerneaux | C86: Non | D86: 261 | E86: 1 | F86: 15.55 | G86: 2024-03-01 | H86: 15.55 | I86: 2024
A87: Episaveurs | B87: Pruneaux | C87: Non | D87: 262 | E87: 1 | F87: 8.03 | G87: 2024-03-01 | H87: 8.03 | I87: 2024
A88: Episaveurs | B88: Abricot | C88: Non | D88: 263 | E88: 1 | F88: 7.3 | G88: 2024-03-01 | H88: 7.3 | I88: 2024
A89: Episaveurs | B89: Datte | C89: Non | D89: 264 | E89: 1.5 | F89: 6.53 | G89: 2024-03-01 | H89: 9.795 | I89: 2024
A90: Episaveurs | B90: Miel | C90: Non | D90: 265 | E90: 1 | F90: 5.45 | G90: 2024-03-01 | H90: 5.45 | I90: 2024
A91: Episaveurs | B91: Pate Marron | C91: Non | D91: 266 | E91: 1 | F91: 10.46 | G91: 2024-03-01 | H91: 10.46 | I91: 2024
A92: Episaveurs | B92: Sirop Violette | C92: Non | D92: 267 | E92: 1 | F92: 9.15 | G92: 2024-03-01 | H92: 9.15 | I92: 2024
A93: Episaveurs | B93: Cornichon | C93: Non | D93: 268 | E93: 4.5 | F93: 3.2 | G93: 2024-03-01 | H93: 14.4 | I93: 2024
A94: Episaveurs | B94: Capres | C94: Non | D94: 269 | E94: 5 | F94: 2.39 | G94: 2024-03-01 | H94: 11.95 | I94: 2024
A95: Episaveurs | B95: Olive Noir | C95: Non | D95: 270 | E95: 4 | F95: 1.6 | G95: 2024-03-01 | H95: 6.4 | I95: 2024
A96: Episaveurs | B96: Pois Chiche | C96: Non | D96: 272 | E96: 5 | F96: 2.21 | G96: 2024-03-01 | H96: 11.05 | I96: 2024
A97: Episaveurs | B97: Concentre De Tomate | C97: Non | D97: 273 | E97: 2 | F97: 1.55 | G97: 2024-03-01 | H97: 3.1 | I97: 2024
A98: Episaveurs | B98: Thon | C98: Non | D98: 274 | E98: 1 | F98: 11.7 | G98: 2024-03-01 | H98: 11.7 | I98: 2024
A99: Episaveurs | B99: Trois Poivres | C99: Non | D99: 275 | E99: 1.5 | F99: 13.6 | G99: 2024-03-01 | H99: 20.4 | I99: 2024
A100: Episaveurs | B100: Piment Cayenne | C100: Non | D100: 276 | E100: 2 | F100: 9.91 | G100: 2024-03-01 | H100: 19.82 | I100: 2024
A101: Episaveurs | B101: Quatre Epices | C101: Non | D101: 277 | E101: 1 | F101: 9.96 | G101: 2024-03-01 | H101: 9.96 | I101: 2024
A102: Episaveurs | B102: Origan | C102: Non | D102: 278 | E102: 1 | F102: 3.24 | G102: 2024-03-01 | H102: 3.24 | I102: 2024
A103: Episaveurs | B103: Cumin Moulu | C103: Non | D103: 279 | E103: 1 | F103: 12.76 | G103: 2024-03-01 | H103: 12.76 | I103: 2024
A104: Episaveurs | B104: Coriandre | C104: Non | D104: 280 | E104: 1 | F104: 4.01 | G104: 2024-03-01 | H104: 4.01 | I104: 2024
A105: Episaveurs | B105: Paprika | C105: Non | D105: 281 | E105: 1 | F105: 5.86 | G105: 2024-03-01 | H105: 5.86 | I105: 2024
A106: Episaveurs | B106: Clou Girofle | C106: Non | D106: 282 | E106: 1.5 | F106: 5.9 | G106: 2024-03-01 | H106: 8.85 | I106: 2024
A107: Episaveurs | B107: Poivre Mignonette | C107: Non | D107: 283 | E107: 1 | F107: 12.92 | G107: 2024-03-01 | H107: 12.92 | I107: 2024
A108: Episaveurs | B108: Fond Blanc | C108: Non | D108: 285 | E108: 1 | F108: 13.63 | G108: 2024-03-01 | H108: 13.63 | I108: 2024
A109: Episaveurs | B109: Jus De Veau | C109: Non | D109: 287 | E109: 3 | F109: 10.25 | G109: 2024-03-01 | H109: 30.75 | I109: 2024
A110: Episaveurs | B110: Moutarde | C110: Non | D110: 288 | E110: 1 | F110: 2.56 | G110: 2024-03-01 | H110: 2.56 | I110: 2024
A111: Episaveurs | B111: Tomate Pelee | C111: Non | D111: 291 | E111: 2 | F111: 2.02 | G111: 2024-03-01 | H111: 4.04 | I111: 2024
A112: Episaveurs | B112: Polenta | C112: Non | D112: 292 | E112: 3 | F112: 1.48 | G112: 2024-03-01 | H112: 4.44 | I112: 2024
A113: Episaveurs | B113: Bigarreaux | C113: Non | D113: 293 | E113: 0.2 | F113: 8.9 | G113: 2024-03-01 | H113: 1.78 | I113: 2024
A114: Episaveurs | B114: Lecitine De Soja | C114: Non | D114: 297 | E114: 1 | F114: 53.03 | G114: 2024-03-01 | H114: 53.03 | I114: 2024
A115: Episaveurs | B115: Bouillon Legumes | C115: Non | D115: 299 | E115: 1 | F115: 15.07 | G115: 2024-03-01 | H115: 15.07 | I115: 2024
A116: Episaveurs | B116: Poivre Blanc Moulu pot | C116: Non | D116: 300 | E116: 1 | F116: 23.95 | G116: 2024-03-01 | H116: 23.95 | I116: 2024
A117: Episaveurs | B117: Sel Fin | C117: Non | D117: 301 | E117: 14 | F117: 0.25 | G117: 2024-03-01 | H117: 3.5 | I117: 2024
A118: Episaveurs | B118: Fleur De Sel | C118: Non | D118: 302 | E118: 1 | F118: 7.62 | G118: 2024-03-01 | H118: 7.62 | I118: 2024
A119: Episaveurs | B119: Sel Guerande | C119: Non | D119: 303 | E119: 1.5 | F119: 5.82 | G119: 2024-03-01 | H119: 8.73 | I119: 2024
A120: Episaveurs | B120: Gros Sel | C120: Non | D120: 304 | E120: 17 | F120: 0.27 | G120: 2024-03-01 | H120: 4.59 | I120: 2024
A121: Episaveurs | B121: Curcuma | C121: Non | D121: 305 | E121: 0.5 | F121: 6.17 | G121: 2024-03-01 | H121: 3.085 | I121: 2024
A122: Episaveurs | B122: Poivre Blanc Moulu | C122: Non | D122: 306 | E122: 1 | F122: 16.56 | G122: 2024-03-01 | H122: 16.56 | I122: 2024
A123: Episaveurs | B123: Cannelle Ceylan | C123: Non | D123: 307 | E123: 1 | F123: 15.44 | G123: 2024-03-01 | H123: 15.44 | I123: 2024
A124: Episaveurs | B124: Graine De Courge | C124: Non | D124: 309 | E124: 2 | F124: 5.7 | G124: 2024-03-01 | H124: 11.4 | I124: 2024
A125: Episaveurs | B125: Lait Coco | C125: Non | D125: 311 | E125: 2 | F125: 4 | G125: 2024-03-01 | H125: 8 | I125: 2024
A126: Episaveurs | B126: Herbes De Provence | C126: Non | D126: 312 | E126: 1 | F126: 6.4 | G126: 2024-03-01 | H126: 6.4 | I126: 2024
A127: Episaveurs | B127: Poivre Noir Grain | C127: Non | D127: 314 | E127: 1 | F127: 12.92 | G127: 2024-03-01 | H127: 12.92 | I127: 2024
A128: Episaveurs | B128: Sumac | C128: Non | D128: 315 | E128: 1 | F128: 20.46 | G128: 2024-03-01 | H128: 20.46 | I128: 2024
A129: Episaveurs | B129: Badiane | C129: Non | D129: 316 | E129: 1 | F129: 10.32 | G129: 2024-03-01 | H129: 10.32 | I129: 2024
A130: Episaveurs | B130: Sesame Doree | C130: Non | D130: 317 | E130: 1 | F130: 9.48 | G130: 2024-03-01 | H130: =E130*F130 -> 9.48 | I130: =YEAR(G130) -> 2024
A131: Episaveurs | B131: Chimichuri | C131: Non | D131: 319 | E131: 1 | F131: 17.35 | G131: 2024-03-01 | H131: 17.35 | I131: 2024
A132: Episaveurs | B132: Huile Pepin De Raisin | C132: Non | D132: 322 | E132: 3 | F132: 4.6 | G132: 2024-03-01 | H132: 13.8 | I132: 2024
A133: Episaveurs | B133: Huile D'Olive | C133: Non | D133: 324 | E133: 6 | F133: 5.28 | G133: 2024-03-01 | H133: 31.68 | I133: 2024
A134: Episaveurs | B134: Huile Sesame | C134: Non | D134: 325 | E134: 1 | F134: 6.9 | G134: 2024-03-01 | H134: 6.9 | I134: 2024
A135: Episaveurs | B135: Semoule De Ble | C135: Non | D135: 326 | E135: 5 | F135: 3.62 | G135: 2024-03-01 | H135: 18.1 | I135: 2024
A136: Episaveurs | B136: Ail Fume | C136: Non | D136: 328 | E136: 2 | F136: 10.6 | G136: 2024-03-01 | H136: 21.2 | I136: 2024
A137: Episaveurs | B137: Salade De Fleur | C137: Non | D137: 329 | E137: 2 | F137: 12.8 | G137: 2024-03-01 | H137: 25.6 | I137: 2024
A138: Episaveurs | B138: Nouille Chinoise | C138: Non | D138: 330 | E138: 1.5 | F138: 2.92 | G138: 2024-03-01 | H138: 4.38 | I138: 2024
A139: Episaveurs | B139: Quinoa Bio | C139: Non | D139: 331 | E139: 1 | F139: 8.24 | G139: 2024-03-01 | H139: 8.24 | I139: 2024
A140: Episaveurs | B140: Oignons Frit | C140: Non | D140: 333 | E140: 3 | F140: 8.42 | G140: 2024-03-01 | H140: 25.26 | I140: 2024
A141: Episaveurs | B141: Ketchup bidon | C141: Non | D141: 334 | E141: 2 | F141: 6.13 | G141: 2024-03-01 | H141: 12.26 | I141: 2024
A142: Episaveurs | B142: Sauce Anglaise | C142: Non | D142: 337 | E142: 11 | F142: 1.76 | G142: 2024-03-01 | H142: 19.36 | I142: 2024
A143: Episaveurs | B143: Tabasco | C143: Non | D143: 338 | E143: 8 | F143: 3.72 | G143: 2024-03-01 | H143: 29.76 | I143: 2024
A144: Episaveurs | B144: Wasabi | C144: Non | D144: 339 | E144: 1 | F144: 5.48 | G144: 2024-03-01 | H144: 5.48 | I144: 2024
A145: Episaveurs | B145: Sauce Nem'S | C145: Non | D145: 340 | E145: 1 | F145: 3.54 | G145: 2024-03-01 | H145: 3.54 | I145: 2024
A146: Episaveurs | B146: Balsa Reduit | C146: Non | D146: 341 | E146: 2 | F146: 5.62 | G146: 2024-03-01 | H146: 11.24 | I146: 2024
A147: Episaveurs | B147: Piment Espelette | C147: Non | D147: 342 | E147: 1 | F147: 6.96 | G147: 2024-03-01 | H147: 6.96 | I147: 2024
A148: Episaveurs | B148: Vinaigre Blanc | C148: Non | D148: 343 | E148: 12.5 | F148: 0.76 | G148: 2024-03-01 | H148: 9.5 | I148: 2024
A149: Episaveurs | B149: Vin Rouge | C149: Non | D149: 344 | E149: 2 | F149: 1.43 | G149: 2024-03-01 | H149: 2.86 | I149: 2024
A150: Episaveurs | B150: Vin Blanc | C150: Non | D150: 345 | E150: 3 | F150: 1.42 | G150: 2024-03-01 | H150: 4.26 | I150: 2024
A151: Episaveurs | B151: Xeres | C151: Non | D151: 347 | E151: 1.5 | F151: 3.32 | G151: 2024-03-01 | H151: 4.98 | I151: 2024
A152: Episaveurs | B152: Mayonnaise | C152: Non | D152: 350 | E152: 3.5 | F152: 6.44 | G152: 2024-03-01 | H152: 22.54 | I152: 2024
A153: Episaveurs | B153: Sweet Chilie | C153: Non | D153: 351 | E153: 3 | F153: 13.07 | G153: 2024-03-01 | H153: 39.21 | I153: 2024
A154: Episaveurs | B154: Moutarde Ancienne | C154: Non | D154: 352 | E154: 1 | F154: 2.61 | G154: 2024-03-01 | H154: 2.61 | I154: 2024
A155: Episaveurs | B155: Tahini | C155: Non | D155: 353 | E155: 1 | F155: 14.9 | G155: 2024-03-01 | H155: 14.9 | I155: 2024
A156: Episaveurs | B156: Chapelure Brune | C156: Non | D156: 354 | E156: 3 | F156: 2.55 | G156: 2024-03-01 | H156: 7.65 | I156: 2024
A157: Episaveurs | B157: Chapelure Panko | C157: Non | D157: 355 | E157: 3 | F157: 7 | G157: 2024-03-01 | H157: 21 | I157: 2024
A158: Episaveurs | B158: Feuille De Riz | C158: Non | D158: 357 | E158: 1 | F158: 5.21 | G158: 2024-03-01 | H158: 5.21 | I158: 2024
A159: Episaveurs | B159: Vermicelle De Riz | C159: Non | D159: 358 | E159: 1.5 | F159: 7.7 | G159: 2024-03-01 | H159: 11.55 | I159: 2024
A160: Episaveurs | B160: Risotto | C160: Non | D160: 360 | E160: 1 | F160: 2.47 | G160: 2024-03-01 | H160: 2.47 | I160: 2024
A161: Episaveurs | B161: Riz Basmati | C161: Non | D161: 361 | E161: 7 | F161: 2.43 | G161: 2024-03-01 | H161: 17.01 | I161: 2024
A162: Episaveurs | B162: Linguine | C162: Non | D162: 362 | E162: 2.5 | F162: 10.22 | G162: 2024-03-01 | H162: 25.55 | I162: 2024
A163: Episaveurs | B163: Tagliatelle | C163: Non | D163: 364 | E163: 2.5 | F163: 9.62 | G163: 2024-03-01 | H163: 24.05 | I163: 2024
A164: Episaveurs | B164: Curry | C164: Non | D164: 365 | E164: 2 | F164: 9.5 | G164: 2024-03-01 | H164: 19 | I164: 2024
A165: Episaveurs | B165: Vanille Gousse | C165: Non | D165: 367 | E165: 1 | F165: 38 | G165: 2024-03-01 | H165: 38 | I165: 2024
A166: Episaveurs | B166: Puree De Mangue | C166: Non | D166: 368 | E166: 1 | F166: 9.9 | G166: 2024-03-01 | H166: 9.9 | I166: 2024
A167: Episaveurs | B167: Kremfix | C167: Non | D167: 369 | E167: 1 | F167: 6.68 | G167: 2024-03-01 | H167: 6.68 | I167: 2024
A168: Episaveurs | B168: Levure | C168: Non | D168: 371 | E168: 1 | F168: 11.27 | G168: 2024-03-01 | H168: 11.27 | I168: 2024
A169: Episaveurs | B169: Fleur D'Hibiscus | C169: Non | D169: 373 | E169: 1 | F169: 7.64 | G169: 2024-03-01 | H169: 7.64 | I169: 2024
A170: Episaveurs | B170: Arome Vanille | C170: Non | D170: 374 | E170: 1.5 | F170: 6.85 | G170: 2024-03-01 | H170: 10.275 | I170: 2024
A171: Episaveurs | B171: Baie De Goji | C171: Non | D171: 375 | E171: 1.1 | F171: 12.9 | G171: 2024-03-01 | H171: 14.19 | I171: 2024
A172: Episaveurs | B172: Lentille Beluga | C172: Non | D172: 377 | E172: 2 | F172: 5.08 | G172: 2024-03-01 | H172: 10.16 | I172: 2024
A173: Episaveurs | B173: Coquillette | C173: Non | D173: 379 | E173: 1.5 | F173: 3.15 | G173: 2024-03-01 | H173: 4.725 | I173: 2024
A174: Episaveurs | B174: Extrait De Cafe | C174: Non | D174: 381 | E174: 0.5 | F174: 28.35 | G174: 2024-03-01 | H174: 14.175 | I174: 2024
A175: Episaveurs | B175: Noisette | C175: Non | D175: 382 | E175: 2 | F175: 14.85 | G175: 2024-03-01 | H175: 29.7 | I175: 2024
A176: Episaveurs | B176: Humus | C176: Non | D176: 385 | E176: 6 | F176: 13 | G176: 2024-03-01 | H176: 78 | I176: 2024
A177: Episaveurs | B177: Dakatine | C177: Non | D177: 386 | E177: 1 | F177: 10.25 | G177: 2024-03-01 | H177: 10.25 | I177: 2024
A178: Episaveurs | B178: Pate Curry Vert | C178: Non | D178: 387 | E178: 1 | F178: 5.6 | G178: 2024-03-01 | H178: 5.6 | I178: 2024
A179: Episaveurs | B179: Amarena | C179: Non | D179: 388 | E179: 1 | F179: 17.16 | G179: 2024-03-01 | H179: 17.16 | I179: 2024
A180: Episaveurs | B180: Coulis Tomate | C180: Non | D180: 389 | E180: 1 | F180: 3.13 | G180: 2024-03-01 | H180: 3.13 | I180: 2024
A181: Episaveurs | B181: Raisin Sec | C181: Non | D181: 390 | E181: 3 | F181: 4.03 | G181: 2024-03-01 | H181: 12.09 | I181: 2024
A182: Episaveurs | B182: Sauce Piment Sriracha | C182: Non | D182: 391 | E182: 2 | F182: 10.44 | G182: 2024-03-01 | H182: 20.88 | I182: 2024
A183: Episaveurs | B183: Sauce Soja Sucre | C183: Non | D183: 392 | E183: 1 | F183: 12.9 | G183: 2024-03-01 | H183: 12.9 | I183: 2024
A184: Episaveurs | B184: Sauce Soja Sale | C184: Non | D184: 393 | E184: 2 | F184: 7.47 | G184: 2024-03-01 | H184: 14.94 | I184: 2024
A185: Episaveurs | B185: Sauce Teriaky | C185: Non | D185: 394 | E185: 1 | F185: 23.29 | G185: 2024-03-01 | H185: 23.29 | I185: 2024
A186: Episaveurs | B186: Sauce Huitre | C186: Non | D186: 395 | E186: 1 | F186: 5.59 | G186: 2024-03-01 | H186: 5.59 | I186: 2024
A187: Episaveurs | B187: Graisse De Canard 5/1 | C187: Non | D187: 396 | E187: 1 | F187: 45.72 | G187: 2024-03-01 | H187: 45.72 | I187: 2024
A188: Episaveurs | B188: Lentille Corail | C188: Non | D188: 397 | E188: 3 | F188: 3.56 | G188: 2024-03-01 | H188: 10.68 | I188: 2024
A189: Episaveurs | B189: Jus Citron Vert | C189: Non | D189: 398 | E189: 1 | F189: 4.96 | G189: 2024-03-01 | H189: 4.96 | I189: 2024
A190: Episaveurs | B190: Girofle | C190: Non | D190: 399 | E190: 2 | F190: 11.49 | G190: 2024-03-01 | H190: 22.98 | I190: 2024
A191: Episaveurs | B191: Bombe A Graise | C191: Non | D191: 400 | E191: 6 | F191: 12.61 | G191: 2024-03-01 | H191: 75.66 | I191: 2024
A192: Episaveurs | B192: Beurre Cacao | C192: Non | D192: 401 | E192: 0.2 | F192: 12.4 | G192: 2024-03-01 | H192: 2.48 | I192: 2024
A193: Episaveurs | B193: Speculoos | C193: Non | D193: 403 | E193: 1 | F193: 14.4 | G193: 2024-03-01 | H193: 14.4 | I193: 2024
A194: Episaveurs | B194: Cookies | C194: Non | D194: 404 | E194: 1 | F194: 23.3 | G194: 2024-03-01 | H194: =E194*F194 -> 23.3 | I194: =YEAR(G194) -> 2024
A195: Episaveurs | B195: Satay | C195: Non | D195: 405 | E195: 3 | F195: 14.12 | G195: 2024-03-01 | H195: 42.36 | I195: 2024
A196: Episaveurs | B196: Napoli | C196: Non | D196: 407 | E196: 0.2 | F196: 24.39 | G196: 2024-03-01 | H196: 4.878 | I196: 2024
A197: Episaveurs | B197: Mais | C197: Non | D197: 408 | E197: 0.5 | F197: 8.87 | G197: 2024-03-01 | H197: 4.435 | I197: 2024
A198: Episaveurs | B198: Morille | C198: Non | D198: 409 | E198: 0.3 | F198: 83.39 | G198: 2024-03-01 | H198: 25.017 | I198: 2024
A199: Episaveurs | B199: Huile De Noix | C199: Non | D199: 412 | E199: 3 | F199: 8.75 | G199: 2024-03-01 | H199: 26.25 | I199: 2024
A200: Episaveurs | B200: Chamon | C200: Non | D200: 413 | E200: 0.5 | F200: 70.71 | G200: 2024-03-01 | H200: 35.355 | I200: 2024
... 7735 more rows
